{"text_format":"3","workbook":"xlsx","n_sheets":1,"sheets":["összes (2)"],"not_rendered":{"external_links":1},"read":"whole","date_system":"1900"}

{"sheet":"összes (2)","index":0,"n_rows":120,"n_cols":44,"rows_kept":120,"merged":[[0,1,0,4],[0,5,0,15],[0,16,0,27],[0,28,0,30],[0,31,0,44]]}
[null,"Alapadatok",{"$nulls":3},"Értékelési adatok",{"$nulls":10},"Technikai adatok",{"$nulls":11},"Tematika",null,null,"Oktatással kapcsolatos adatok"]
[null,"Szervezet","Szerző(k)","Tananyag címe: ",null,"Résztvevők száma","Hallgatók száma","Kreditek száma","hallagatók száma","MSC","BSc","Nyelvek száma","Interdiszciplináris","IT","A4","PONTSZÁM","IT ","formátum","karakter",null,"fejezet","Képek","Interaktív","Animáció","Videó","Kísérletek","IT segítség",null,"Tematika","Fejlesztés indokoltsága",null,"Szak MSc","Szakirány MSc","Tárgy MSc  (KÓD)","MSc Hallgatók száma","MSc Kreditek száma","Nyelve: ","Szak BSC","Szakirány BSC","Tárgy BSC (KÓD)","BSc Hallgotók száma","BSc Kreditek száma","Nyelve: ","Kurzusok száma"]
[1,"BME FI ","Vankó Péter","Kísérleti fizika 1.","Kísérleti Fizika",1,{"$f":"2*AI3+AO3","v":15},{"$f":"2*AJ3+AP3","v":10},null,1,0,1,0,{"$f":"V3*3000+W3*10000+Y3*10000+X3*8000","v":{"v":700000,"d":"700,000"}},{"$f":"S3/1800","v":{"v":222.22222222222223,"d":"222"}},{"$f":"N3+F3*400000+H3*10000+G3*1000","v":{"v":1215000,"d":"1,215,000"}},"szöveg: LaTeX, videók: wikimédia",".pdf + wikimédia (videók)",{"v":400000,"d":"400,000"},null,19,200,null,null,10,{"$nulls":3},"Tömegpont kinematikája;Tömegpont dinamikája;Mozgások leírása különböző vonatkoztatási rendszerekben;Munka és energia;Pontrendszerek mechanikája;Merev testek mozgása;Szilárd testek alakváltozása;Hidrosztatika;Felületi jelenségek;Folyadékok és gázok áramlása;Szabad rezgések;Kényszerrezgés, rezonancia;Rezgések összetevése és felbontása, csatolt rezgések;Hullámok;Energiaterjedés mechanikai hullámokban;Visszaverődés és törés;Interferencia, elhajlás, állóhullámok;Doppler-effektus;Hang és fény, hangszerek, ultrahang;","A Kísérleti fizika tárgyak alapozzák meg a fizika BSc hallgatók természettudományos világképét és gondolkodásmódját, ezért kiemelten fontosnak tartjuk az egységes szerkezetű, korszerű tananyag elkészítést. Az új tananyag elektronikus formában külső és belső hivatkozásokkal, színes ábrákkal, képekkel és videókkal segíti a tanulást, ugyanakkor a vizsgára való készüléshez a LaTeX szerkesztésnek köszönhetően a képletekkel és ábrákkal együtt tipográfiailag is szép formában kinyomtatható. ",{"$nulls":3},"Atom és molekulafizika  BMETE15MF02",null,3,1,"Fizika",null,"Kísérleti fizika 1. BMETE13AF02",15,4,1]
[{"$f":"A3+1","v":2},"BME FI ","Koppa Pál","Kísérleti fizika 2.","Kísérleti Fizika",1,{"$f":"2*AI4+AO4","v":15},{"$f":"2*AJ4+AP4","v":4},{"$nulls":3},1,null,{"$f":"V4*3000+W4*10000+Y4*10000+X4*8000","v":{"v":700000,"d":"700,000"}},{"$f":"S4/1800","v":{"v":277.77777777777777,"d":"278"}},{"$f":"N4+F4*400000+H4*10000+G4*1000","v":{"v":1155000,"d":"1,155,000"}},"szöveg: LaTeX, videók: wikimédia",".pdf + wikimédia (videók)",{"v":500000,"d":"500,000"},null,12,200,null,null,10,{"$nulls":3},"Elektrosztatika, stacionáris áramok, magnetosztatika, indukció, eltolási áram. Maxwell-egyenletek vákuumban és anyagban. Elektromágneses rezgések és hullámok. Fénytörés, fényvisszaverődés. Fényhullámok interferenciája és diffrakciója. A speciális relativitáselmélet.","A Kísérleti fizika tárgyak alapozzák meg a fizika BSc hallgatók természettudományos világképét és gondolkodásmódját, ezért kiemelten fontosnak tartjuk az egységes szerkezetű, korszerű tananyag elkészítést. Az új tananyag elektronikus formában külső és belső hivatkozásokkal, színes ábrákkal, képekkel és videókkal segíti a tanulást, ugyanakkor a vizsgára való készüléshez a LaTeX szerkesztésnek köszönhetően a képletekkel és ábrákkal együtt tipográfiailag is szép formában kinyomtatható. ",{"$nulls":6},1,"Fizika",null,"Kísérleti fizika 1. BMETE13AF02",15,4,1]
[{"$f":"A4+1","v":3},"BME FI ","Újsághy Orsolya","Kísérleti fizika 3.","Kísérleti Fizika",1,15,4,{"$nulls":3},1,null,{"v":700000,"d":"700,000"},{"v":294.44444444444446,"d":"294"},{"v":1155000,"d":"1,155,000"},"szöveg: LaTeX, videók: wikimédia",".pdf + wikimédia (videó",{"v":530000,"d":"530,000"},null,25,200,null,null,10,{"$nulls":3},"Kinetikus gázelmélet: gáznyomás, hőmérséklet, belső energia, transzportfolyamatok, szabad úthossz közelítésben. Termodinamika: állapotjelzők, hőmérsékletskálák, I. és II. főtétel, entrópia, III. főtétel, termodinamikai potenciálok, a termodinamikai egyensúly feltételei, állapotegyenletek, Maxwell-relációk, Euler egyenletek, Gibbs-Duham reláció. Fázisátalakulások: Clausius-Clapeyron egyenlet, első- és másodrendű fázisátalakulások sajátságai, többkomponensű rendszerek, kémiai reakciók. A kvantummechanika alapjai: hőmérsékleti sugárzás, fotoeffektus, Compton effektus, atommodellek, anyaghullámok, Schrödinger egyenlet és stacionárius megoldásai, alkalmazások.","A Kísérleti fizika tárgyak alapozzák meg a fizika BSc hallgatók természettudományos világképét és gondolkodásmódját, ezért kiemelten fontosnak tartjuk az egységes szerkezetű, korszerű tananyag elkészítést. Az új tananyag elektronikus formában külső és belső hivatkozásokkal, színes ábrákkal, képekkel és videókkal segíti a tanulást, ugyanakkor a vizsgára való készüléshez a LaTeX szerkesztésnek köszönhetően a képletekkel és ábrákkal együtt tipográfiailag is szép formában kinyomtatható. ",{"$nulls":6},1,"Fizika",null,"Kísérleti fizika 1. BMETE13AF02",15,4,1]
[4,"BME FI ","Kertész János, Orosz László","Elméleti fizika 1.","Elméleti fizika",2,60,6,{"$nulls":3},1,null,{"v":135000,"d":"135,000"},{"v":222.22222222222223,"d":"222"},{"v":1055000,"d":"1,055,000"},"LaTex",".pdf+wikimédia",{"v":400000,"d":"400,000"},null,15,45,{"$nulls":6},"Anyagi pont newtoni mechanikája, impulzus, impulzusmomentum, konzervativ erők, energia. Pontrendszerek mechanikája, a 10 mozgásintegrál. Kényszerek, általánosított koordináták, a mechanika elvei. Merev testek. Folytonos közegek. rugalmas testek mechanikája, a feszültségtenzor. Hullámegyenlet. Ideális és viszkózus folyadékok. Maxwell egyenletek. Szigetelők, vezetők (stacionárius) áramok, Sztatikus elektromos és mágneses tér. Skalár- és vektorpotenciál. Időfüggő elektromos és mágneses tér. Eletromágneses hullámok. Eletromágneses tér anyagi közegben. Az elektromágneses tér energiája és impulzusa. A speciális relativításelmélet alapjai.","A hazai gyakorlatban teljesen új a kétszintű képzéssel bevezetett elméleti fizika két szemeszterben leadott változata, ami az alkalmazott fizika BSc szakirány hallgatói számára foglalja össze tömören négy elméleti fizika alaptantárgy legfontosabb, minden fizikus számára szükséges ismereteit. Ehhez a tárgyhoz nélkülözhetetlen az írásos segédanyag, amit a pályázat keretében szeretnénk elkészíteni és elektronikus formában a hallgatók rendelkezésére bocsátani. Megítélésünk szerint ez a tananyag nemcsak a hazai fizikusképzésben, hanem az elméleti fizika iránt érdeklődő műszaki és természettudományos szakok hallgatói számára is hasznos lesz.",{"$nulls":6},1,"Fizikus",null,"Elméleti Fizika I.  BMETE15AF06",60,6,1]
[5,"BME FI ","Kertész János, Orosz László, Szunyogh László","Elméleti fizika 2.","Elméleti fizika",3,100,6,{"$nulls":3},1,null,{"v":135000,"d":"135,000"},{"v":222.22222222222223,"d":"222"},{"v":1495000,"d":"1,495,000"},"LaTex",".pdf+wikimédia",{"v":400000,"d":"400,000"},null,16,45,{"$nulls":6},"Mikro- és makroállapotok, zárt és kölcsönható rendszerek, egyensúly. Statisztikus fizikai entrópia, kapcsolat a termodinamikával. Különböző sokaságok és ekvivalenciájuk. Termodinamikai potenciálok, fluktuációk. Kölcsönható rendszerek, van der Waals egyenlet, fázisátalakulások, átlagtér elmélet. A kvantummechanika matematikai eszközei, Hilbert tér, operátorok. A mérés, sajátértékek, kommutátorok, határozatlansági relációk. Schrödinger egyenler, stacionárius eset, kötött és szabad állapotok.","A hazai gyakorlatban teljesen új a kétszintű képzéssel bevezetett elméleti fizika két szemeszterben leadott változata, ami az alkalmazott fizika BSc szakirány hallgatói számára foglalja össze tömören négy elméleti fizika alaptantárgy legfontosabb, minden fizikus számára szükséges ismereteit. Ehhez a tárgyhoz nélkülözhetetlen az írásos segédanyag, amit a pályázat keretében szeretnénk elkészíteni és elektronikus formában a hallgatók rendelkezésére bocsátani. Megítélésünk szerint ez a tananyag nemcsak a hazai fizikusképzésben, hanem az elméleti fizika iránt érdeklődő műszaki és természettudományos szakok hallgatói számára is hasznos lesz.",{"$nulls":6},1,"Fizikus",null,"Elméleti Fizika II.  BMETE15AF07",null,6,1]
[6,"BME FI ","Keszthelyi Tamás","Mechanika","Elméleti fizika",1,120,4,{"$nulls":3},1,null,{"v":90000,"d":"90,000"},{"v":222.22222222222223,"d":"222"},{"v":650000,"d":"650,000"},"LaTex",".pdf+wikimédia",{"v":400000,"d":"400,000"},null,12,30,{"$nulls":6},"Newton-axiómák, inerciarendszer. Mozgás gyorsuló rendszerben, tehetetlenségi erők. Mozgás egy dimenzióban, centrális erőtérben. Két-test probléma, bolygómozgás, részecskék szórása. Pontrendszerek mozgásegyenletei, és azok integráljai. Merev test mozgása, Euler-egyenletek. Virtuális munka elve, d'Alembert-elv. Kényszerfeltételek, Lagrange-féle első- és másodfajú egyenletek. Hamilton elv Kanonikus egyenletek, kanonikus transzformációk, Hamilton-Jacobi-egyenlet. Szimmetriák, Noether-tétel, mozgásállandók. Deformálható testek mechanikájának elemei. Relativisztikus mechanika.","Az Elméleti fizika tárgyak igen fontos szerepet töltenek be a fizikus szakirányon tanuló fizika BSc hallgatók képzésében, hiszen ezek a tárgyak alapozzák meg a későbbi szakmai ismeretek oktatását, valamint a hallgatók tudományos kutatási tevékenységét, legyen az elméleti vagy kísérleti orientáltságú. Ugyanakkor ezek a tantárgyak alapvetők a tudományos világkép, a fizikusi szemlélet kialakításában is. A klasszikusnak számító négy tantárgyhoz (elméleti mechanika, elektrodinamika és relativitáselmélet, kvantummechanika, statisztikus fizika) kapcsolódik az MSc-n kötelező atom- és molekulafizika. Ezekből a tantárgyakból egységes írásos tananyag nem áll rendelkezésre. Kiemelten fontosnak tartjuk, hogy az oktatók honlapjáról letölthető, egyes részterületekre vonatkozó, eltérő készültségi szintű oktatási segédanyagokból kiindulva, egységes szerkezetű, korszerű tananyag készüljön, az elektronikus formának köszönhetően külső és belső hivatkozásokkal, színes ábrákkal és képekkel. A készülő tananyag jelentőségét növeli, hogy nemcsak a tantárgyakból való felkészülést segíti valamennyi fizikusképzésben, hanem az MSC egyik szakirányán az elméleti fizika szigorlatra készülést is, illetve kiegészítő tananyagként szolgál azon hallgatók számára, akik az alkalmazott fizika szakirányon belül  kevesebb elméleti fizika képzésben részesültek.",{"$nulls":6},1,"Fizikus",null,"Mechanika  BMETE13AF12",null,4,1]
[7,"BME FI ","Jakovác Antal","Elektrodinamika és relativitáselmélet","Elméleti fizika",1,30,4,{"$nulls":3},1,null,{"v":150000,"d":"150,000"},{"v":222.22222222222223,"d":"222"},{"v":620000,"d":"620,000"},"LaTex",".pdf+wikimédia",{"v":400000,"d":"400,000"},null,14,50,{"$nulls":6},"Bevezetés, történeti áttekintés, matematiaki alapfogalmak. Töltéseloszlások elektrosztatikája, elektrosztatikus tér energiája. Poisson egyenlet határfeltételekkel, kapacitás, tükörtöltések módszere. Görbevonalú koordinátarendszerek, gömbi- és hengerkoordináták. Multipólus kifejtés. Elektrosztatika anyag jelenlétében. Mágneses alapjelenségek, árameloszlás mágneses tere. Mágnesség anyag jelenlétében. Időfüggés az elektrodinamikában, indukció. Jelenségek vezetőkben, távíró egyenlet, kvázistacionárius közelítés, skin effektus. Elektromágneses energia és impulzus mérlegegyenlete. Homogén Maxwell-egyenletek megoldása, síkhullámok, csoport- és fázissebesség. Frekvenciafüggő permittivitás, törésmutató, abszorpció. Elektromágneses hullámterjedés határfeltételekkel, törés, hullámvezető. Inhomogén Maxwell-egyenletek megoldása, retardált és avanzsált Green-függvények. Dipól- és multipól sugárzások. Lienard-Wiechert potenciálok. Relativisztikus elektrodinamika. Relativisztikus Larmor-képlet, sugárzás szögeloszlása, spektruma, szinkrotronsugárzás. Elektromágneses hullámok szórása. Cherenkov- és átmeneti sugárzás.","Az Elméleti fizika tárgyak igen fontos szerepet töltenek be a fizikus szakirányon tanuló fizika BSc hallgatók képzésében, hiszen ezek a tárgyak alapozzák meg a későbbi szakmai ismeretek oktatását, valamint a hallgatók tudományos kutatási tevékenységét, legyen az elméleti vagy kísérleti orientáltságú. Ugyanakkor ezek a tantárgyak alapvetők a tudományos világkép, a fizikusi szemlélet kialakításában is. A klasszikusnak számító négy tantárgyhoz (elméleti mechanika, elektrodinamika és relativitáselmélet, kvantummechanika, statisztikus fizika) kapcsolódik az MSc-n kötelező atom- és molekulafizika. Ezekből a tantárgyakból egységes írásos tananyag nem áll rendelkezésre. Kiemelten fontosnak tartjuk, hogy az oktatók honlapjáról letölthető, egyes részterületekre vonatkozó, eltérő készültségi szintű oktatási segédanyagokból kiindulva, egységes szerkezetű, korszerű tananyag készüljön, az elektronikus formának köszönhetően külső és belső hivatkozásokkal, színes ábrákkal és képekkel. A készülő tananyag jelentőségét növeli, hogy nemcsak a tantárgyakból való felkészülést segíti valamennyi fizikusképzésben, hanem az MSC egyik szakirányán az elméleti fizika szigorlatra készülést is, illetve kiegészítő tananyagként szolgál azon hallgatók számára, akik az alkalmazott fizika szakirányon belül  kevesebb elméleti fizika képzésben részesültek.",{"$nulls":6},1,"Fizikus",null,"Elektrodinamika és relativitáselmélet  BMETE13AF15",null,4,1]
[8,"BME FI ","Apagyi Barnabás, Szunyogh László","Kvantummechanika","Elméleti fizika",2,50,5,{"$nulls":3},1,null,{"v":150000,"d":"150,000"},{"v":222.22222222222223,"d":"222"},{"v":1050000,"d":"1,050,000"},"LaTex",".pdf+Wikimédia",{"v":400000,"d":"400,000"},null,9,50,{"$nulls":6},"A klasszikus fizika érvényességének határai. Hullámmechanika. A kvantummechanika matematikai és fizikai alapjai. A fizikai mennyiségeket reprezentáló operátorok sajátértékei és sajátfüggvényei. Kötött állapotok. Hidrogénatom. Spin. Szórási állapotok. Mozgás elektromágneses térben. Relativisztikus kvantummechanika, Dirac egyenlet. Reprezentációelmélet","Az Elméleti fizika tárgyak igen fontos szerepet töltenek be a fizikus szakirányon tanuló fizika BSc hallgatók képzésében, hiszen ezek a tárgyak alapozzák meg a későbbi szakmai ismeretek oktatását, valamint a hallgatók tudományos kutatási tevékenységét, legyen az elméleti vagy kísérleti orientáltságú. Ugyanakkor ezek a tantárgyak alapvetők a tudományos világkép, a fizikusi szemlélet kialakításában is. A klasszikusnak számító négy tantárgyhoz (elméleti mechanika, elektrodinamika és relativitáselmélet, kvantummechanika, statisztikus fizika) kapcsolódik az MSc-n kötelező atom- és molekulafizika. Ezekből a tantárgyakból egységes írásos tananyag nem áll rendelkezésre. Kiemelten fontosnak tartjuk, hogy az oktatók honlapjáról letölthető, egyes részterületekre vonatkozó, eltérő készültségi szintű oktatási segédanyagokból kiindulva, egységes szerkezetű, korszerű tananyag készüljön, az elektronikus formának köszönhetően külső és belső hivatkozásokkal, színes ábrákkal és képekkel. A készülő tananyag jelentőségét növeli, hogy nemcsak a tantárgyakból való felkészülést segíti valamennyi fizikusképzésben, hanem az MSC egyik szakirányán az elméleti fizika szigorlatra készülést is, illetve kiegészítő tananyagként szolgál azon hallgatók számára, akik az alkalmazott fizika szakirányon belül  kevesebb elméleti fizika képzésben részesültek.",{"$nulls":6},1,"Fizikus",null,"Kvantummechanika BMETE15AF00",null,5,1]
[9,"BME FI ","Kertész János, Zaránd Gergely","Statisztikus fizika","Elméleti fizika",2,200,5,{"$nulls":3},1,null,{"v":90000,"d":"90,000"},{"v":222.22222222222223,"d":"222"},{"v":1140000,"d":"1,140,000"},"LaTex",".pdf+wikimédia",{"v":400000,"d":"400,000"},null,15,30,{"$nulls":6},"A statisztikus fizika célkitűzése. Időskálák, egyensúly, irreverzibilitás. Mikro- és makroállapotok, normál rendszerek. Liouville- és Neumann egyenlet. Egyenlő valószínűségek elve, entrópia, kapcsolat a termodinamikával, sokaságok, ekvivalenciájuk. Termodinamikai potenciálok, fluktuációk, korrelációk. Ideális gázok, kvantumstatisztikák, klasszikus átmenet, Degenerált kvantumgázok, Bose-Einstein kondenzáció, fotongáz. Kvázirészecskék, fononok. szuperfolyékonyság, a Fermi-folyadék elmélet alapjai. Árnyékolás. Viriál sofejtés. Fázisátalakulások, van der Waals, Weiss, Landau elméletek. A fluktuációk szerepe, skálázás, univerzalitás, a renormálási csoport transzformáció alapgondolata. Időfüggő egyensúlyi korrelációk. Lineáris transzport, kereszteffektusok, lineáris válasz, fluktuáció,disszipáció tétel. Brown-mozgás, diffúzió, Langevin-egyenlet, Fokker-Planck egyenlet, Vezéregyenlet, Boltzmann-egyenlet, H-tétel, irreverzibilitási paradoxonok és feloldásuk.","Az Elméleti fizika tárgyak igen fontos szerepet töltenek be a fizikus szakirányon tanuló fizika BSc hallgatók képzésében, hiszen ezek a tárgyak alapozzák meg a későbbi szakmai ismeretek oktatását, valamint a hallgatók tudományos kutatási tevékenységét, legyen az elméleti vagy kísérleti orientáltságú. Ugyanakkor ezek a tantárgyak alapvetők a tudományos világkép, a fizikusi szemlélet kialakításában is. A klasszikusnak számító négy tantárgyhoz (elméleti mechanika, elektrodinamika és relativitáselmélet, kvantummechanika, statisztikus fizika) kapcsolódik az MSc-n kötelező atom- és molekulafizika. Ezekből a tantárgyakból egységes írásos tananyag nem áll rendelkezésre. Kiemelten fontosnak tartjuk, hogy az oktatók honlapjáról letölthető, egyes részterületekre vonatkozó, eltérő készültségi szintű oktatási segédanyagokból kiindulva, egységes szerkezetű, korszerű tananyag készüljön, az elektronikus formának köszönhetően külső és belső hivatkozásokkal, színes ábrákkal és képekkel. A készülő tananyag jelentőségét növeli, hogy nemcsak a tantárgyakból való felkészülést segíti valamennyi fizikusképzésben, hanem az MSC egyik szakirányán az elméleti fizika szigorlatra készülést is, illetve kiegészítő tananyagként szolgál azon hallgatók számára, akik az alkalmazott fizika szakirányon belül  kevesebb elméleti fizika képzésben részesültek.",{"$nulls":6},1,"Fizikus",null,"Statisztikus Fizika  BMETE15AF04",null,5,1]
[10,"BME FI ","Kézsmárki István, Bácsi Ádám, Kanász Nagy Márton","Szilárdtestfizika Példatár","Elméleti fizika",3,40,2,{"$nulls":3},1,null,{"v":150000,"d":"150,000"},{"v":66.66666666666667,"d":"67"},{"$f":"N12+F12*400000+H12*10000+G12*1000","v":{"v":1410000,"d":"1,410,000"}},"Wikimédia ","Wikimédia ",{"v":120000,"d":"120,000"},null,10,50,{"$nulls":6},"Szilárd testek, kristályok szimmetriái, Szerkezetmeghatározás, Szóráskísérletek, Rácsrezgések, Szilárd testek fajhője, Elektronok ; kvantummechanikai leírása: közel szabad elektron modell, sávszerkezet; szoros kötésű közelítés, Elektron transzport - Drude modell","Jelen pályázatban az Elméleti fizika példatár Szilárdtestfizika része készül el. A későbbiekben ezt tervezzük kiegészíteni, és egy egységes elméleti fizika példatárat létrehozni. A médiawiki formátum segíti a tananyag későbbi folyamatos fejlesztését és bővítését.A példatár egy-egy fejezete rövid elméleti öszefoglalóból, majd a feladatokból, a megoldást segítő ötletekből és a részletes megoldásból áll. A médiawiki formátum lehetővé teszi a feladatok tetszőleges csoportosítását, különböző foglalkozásokon való használatát és az egyéni gyakorlást is.",{"$nulls":6},1,"Fizika",null,"Szilárdtestfizika gyakorlat BMETE11AF06",null,2,1]
[11,"BME FI ","Pipek János, Szunyogh László, Varga Imre, Hárs György, Dobos Gábor, Kocsányi László","Fizika II","Mérnöki fizika",3,100,0,{"$nulls":3},1,null,{"v":680000,"d":"680,000"},{"v":277.77777777777777,"d":"278"},{"v":1980000,"d":"1,980,000"},"LaTex","PDF",{"v":500000,"d":"500,000"},null,2,200,null,10,{"$nulls":4},"Elektromosságtan\nAz elektrosztatika alaptörvényei, Gauss törvény\nElektromos tér szigetelőkben és vezetőkben\nElektromos potenciál és feszültség\nKondenzátorok, kapacitás, az elektromos tér energiája\nStacionárius áramok, Ohm törvény\nEgyenáramú áramkörök, Kirchoff-törvények\nMágneses tér, Lorentz erő\nBiot-Savart-törvény, áram mágneses tere\nMágneses fluxus, Ampere törvénye\nLenz-törvény, indukció, váltóáramú áramkörök\nMaxwell egyenletek rendszere, elektromágneses hullámok\nOptika\nGeometriai optika\nHullámoptika\n","A műszaki tudományok természettudományos alapjául szolgáló fizika oktatása a BME mérnöki karain modulrendszerben történik. A Fizika 1 tartalmazza a mechanikát és a hőtant, a Fizika 2 az elektromosságtant és az optikát, a Fizika 3 pedig a modern fizikát, ezen belül a kvantummechanikát és a szilárdtestfizikát, illetve a kitekintést. A helyzetet bonyolítja, hogy a különböző karok, illetve szakok eltérő matematikai eszköztárral és különböző mélységben igénylik a fizika oktatását, továbbá idegennyelvű, angol és német változatokra is szükség van. A komplex követelményeknek eleget tevő, elkészítendő modern elektronikus tananyag figyelemfelkeltő, színes ábrákkal, esetenként mozgóképekkel, valamint a megértést könnyítő kereszthivatkozásokkal segíti majd elő a többezres hallgatóság tanulását és vizsgára való felkészülését. A szakmai ismeretek közvetítése mellett fontos célunk a mérnökhallgatók modern természettudományos szemléletének fejlesztése is.\n",{"$nulls":6},1,"Gépészmérnöki, Mechatronikai, Terméktervezői szakok\nBsc Energetikai mérnök szak\nBsc Közlekedésmérnöki szak\nBsc Járműgépész szak\n",null,"Fizika2   BMETE11AX02\nFizika 2   BMETE11AX04, Fizika 2   BMETE11AX04\nFizika A2  BMETE15AX02, Fizika A2  BMETE15AX02\nFizika A2E  BMETE15AX15\nFizika A2K  BMETE15AX09\nFizika A2J  BMETE15AX16\n",null,null,1]
[12,"BME FI ","Richter Péter, Sólyom András, Kugler Sándor, Kocsányi László","Fizika III","Mérnöki fizika",1,30,0,{"$nulls":3},3,null,{"v":600000,"d":"600,000"},{"v":277.77777777777777,"d":"278"},{"v":1030000,"d":"1,030,000"},"Adobe Acrobat Professional","PDF, tartalomjegyzékkel",{"v":500000,"d":"500,000"},null,2,200,{"$nulls":6},"Kvantummechanika\nKísérleti előzmények\nIdőfüggetlen Schrödinger egyenlet\nIdőfüggő Schrödinger egyenlet\nPerturbációelmélet és elektronikus átmenetek\nFormális kvantummechanika és méréselmélet\nImpulzusmomentum, centrális potenciál, hidrogénatom\nAz anyagok elektronszerkezete\nMolekulák\nKvantumstatisztikák\nLézerek\nBevezetés a szilárdtestfizikába\nKémiai kötések és kristályszerkezetek\nA kristályszerkezet meghatározásának kísérleti módszerei\nElektronok szilárdtestekben - szemiklasszikus leírás\nElektronok periódikus potenciálban, sávszerkezet\nInhomogén félvezetők\nFélvezető eszközök\nA szilárdtestek fajhője\nSugárzási átmenetek\nMágneses tulajdonságok\nDielektromos tulajdonságok\nSzupravezetés\n","A Fizika 3 tárgy angol nyelvű kurzusának oktatásához angol nyelven jelenleg kizárólag teljes szakkönyvek állnak rendelkezésre. Minthogy évről-évre egyre több idegennyelvű hallgató jelenik meg ezen a kurzuson szükségessé válik egy olyan, a tanulást segítő angol nyelvű anyag elkészítése, amely a tárgy oktatásában szerzett több éves tapasztalataink alapján a hallgatók igényeinek legmegfelelőbb formában nyújt segítséget.",null,"BMEVIK",null,"Fizika 3   BMETE11MX01",null,null,2,"Gépészmérnöki, Mechatronikai, Terméktervezői",null,"Fizika A3  BMETE15AX03",null,null,3]
[13,"BME FI ","Kocsányi László, Gádoros Patrik","Problemen für Physik 1 und 2","Mérnöki fizika",2,40,0,{"$nulls":3},2,null,{"v":90000,"d":"90,000"},{"v":22.22222222222222,"d":"22"},{"v":930000,"d":"930,000"},"Adobe Acrobat Professional","PDF, tartalomjegyzékkel",{"v":40000,"d":"40,000"},null,16,30,{"$nulls":6},"Vektoren in der Physik: grundlegende Eigenschaften und Operationen mit Vektoren. \nKinematik der Massenpunkte: Ort, Geschwindigkeit und Beschleunigung, Beschreibung von einfachen Bewegungen, Relativbewegung\nDynamik der Massenpunkte: Bewegungsgesetze, Kraft und Potential, mechanische Energie,  Impuls- und Energieerhaltung, Stösse, beschleunigende Koordinatensysteme\nElektrostatik: Coulombsches Gesetz, elektrisches Feld und Superposition, elektrischer Fluss und Gaussches Gesetz, typische Ladungsverteilungen\nElektrische Potential und Kapazität: Zusammenhang von elektrischem Feld und Potential, Energie unterschiedlicher Ladungsverteilungen, Kondensatoren\nMagnetismus: magnetische Induktion, Lorentzkraft, Ampéresches Gesetz, Spulen\nElektromagnetische Induktion: Selbstinduktivität, Gegeninduktivität, Transformator\nStromkreise: Strom und Kontinuität von Ladungen, Ohmsches Gesetz, Leistung, Kirchoffsche Gesetze, Parallel- und Serienschaltung\nSchwingungen: einfache Harmonische Bewegung, gedämpfte und erzwungene Schwingung, Resonanz\nMechanische Wellen: Wellenlänge und Wellenzahl, Wellenausbreitung und Geschwindigkeit, ebene Wellen, stehende Wellen, Doppler Effekt\nElektromagnetische Wellen: Wellenzahl, Zusammenhang elektrischen und magnetischen Felder, EM Doppler Effekt, Lichtintensität, Brechungsindex, Totalreflektion\nGeometrische Optik: Linsen und Spiegels, Brennweite, Abbildungsgesetz\nInterferenz: Schwebung, Doppelspalt (Youngsches) Experiment, Dünnschicht, Newtonsche Ringe, Optischer Gitter, Michelsonscher Interferometer, Dünnschichten, Wellengruppe\nGrundlagen der modernen Physik: Wärmestrahlung, Photoelektrischer Effekt, Photonen\nEinleitung in die spezielle Relativitätstheorie: schnell Bewegende Bezugsysteme, Zeitdilatation, Längekontraktion, Addition von Geschwindigkeiten\n","Fizika 1, 2 (VIK) és a Fizika A2, A3  (GPK) karok közt átfedő tematikájú tárgyak anyagának megértéséhez és elsajátításához elengedhetetlenül szükséges számolási gyakorlatok tartása. Ehhez egyetemünkön jelenleg nem áll rendelkezésre az előadások tematikájához illeszkedő, átfogó német nyelvű példatár, mely a hallgatók felkészülését az órákra és a számonkérésekre segítené. A példatár problémáinak 40 %-ára példamegoldást a maradékra végeredményt közlünk a módszerek könnyebb elsajátítása végett.",{"$nulls":6},1,{"$nulls":5},2]
[14,"BME FI ","Hárs György, Dobos Gábor, Kocsányi László","Fizika I","Mérnöki fizika",3,40,0,{"$nulls":3},3,null,{"v":730000,"d":"730,000"},{"v":277.77777777777777,"d":"278"},{"v":1970000,"d":"1,970,000"},"Adobe Acrobat Professional","PDF, tartalomjegyzékkel",{"v":500000,"d":"500,000"},null,2,200,null,10,5,{"$nulls":3},"Mechanika\nKinematika\nTömegpont dinamikája \nMunka és energia\nTömegpont rendszerek dinamikája\nMerevtestek dinamikája\nOszcilláló mozgás\nAkusztikus hullámok\nGravitáció\nA speciális relativitáselmélet alapjai\nTermodinamika\nHőmérséklet\nA hőtan első főtétele\nA hőtan második főtétele\nKinetikus gázelmélet\nEntrópia\nTranszportelmélet, Boltzmann egyenlet\n","A műszaki tudományok természettudományos alapjául szolgáló fizika oktatása a BME mérnöki karain modulrendszerben történik. A Fizika 1 tartalmazza a mechanikát és a hőtant, a Fizika 2 az elektromosságtant és az optikát, a Fizika 3 pedig a modern fizikát, ezen belül a kvantummechanikát és a szilárdtestfizikát, illetve a kitekintést. A helyzetet bonyolítja, hogy a különböző karok, illetve szakok eltérő matematikai eszköztárral és különböző mélységben igénylik a fizika oktatását, továbbá idegennyelvű, angol és német változatokra is szükség van. A komplex követelményeknek eleget tevő, elkészítendő modern elektronikus tananyag figyelemfelkeltő, színes ábrákkal, esetenként mozgóképekkel, valamint a megértést könnyítő kereszthivatkozásokkal segíti majd elő a többezres hallgatóság tanulását és vizsgára való felkészülését. A szakmai ismeretek közvetítése mellett fontos célunk a mérnökhallgatók modern természettudományos szemléletének fejlesztése is.",{"$nulls":6},1,{"$nulls":5},2]
[15,"BME FI ","László István","Atom- és molekulafizika MSc","Elméleti fizika",1,40,6,{"$nulls":3},1,null,{"$f":"V17*4000+W17*10000+Y17*10000+X17*12000","v":{"v":80000,"d":"80,000"}},{"v":111.11111111111111,"d":"111"},{"v":580000,"d":"580,000"},"LaTex",".pdf+wikimédia",{"v":200000,"d":"200,000"},null,7,20,{"$nulls":6},"A kvantummechanika alapelveinek összefoglalása, relativisztikus kvantummechanika, az ab-initio elektronszerkezet számítás alapjai, atomok és molekulák elektronszerkezete, csatolások, atomok hűtése, csapdába ejtése, a szimmetria figyelembe vétele, molekulák rotációja és vibrációja,  a spektroszkópia alapjai.","Az Elméleti fizika tárgyak igen fontos szerepet töltenek be a fizikus szakirányon tanuló fizika BSc hallgatók képzésében, hiszen ezek a tárgyak alapozzák meg a későbbi szakmai ismeretek oktatását, valamint a hallgatók tudományos kutatási tevékenységét, legyen az elméleti vagy kísérleti orientáltságú. Ugyanakkor ezek a tantárgyak alapvetők a tudományos világkép, a fizikusi szemlélet kialakításában is. A klasszikusnak számító négy tantárgyhoz (elméleti mechanika, elektrodinamika és relativitáselmélet, kvantummechanika, statisztikus fizika) kapcsolódik az MSc-n kötelező atom- és molekulafizika. Ezekből a tantárgyakból egységes írásos tananyag nem áll rendelkezésre. Kiemelten fontosnak tartjuk, hogy az oktatók honlapjáról letölthető, egyes részterületekre vonatkozó, eltérő készültségi szintű oktatási segédanyagokból kiindulva, egységes szerkezetű, korszerű tananyag készüljön, az elektronikus formának köszönhetően külső és belső hivatkozásokkal, színes ábrákkal és képekkel. A készülő tananyag jelentőségét növeli, hogy nemcsak a tantárgyakból való felkészülést segíti valamennyi fizikusképzésben, hanem az MSC egyik szakirányán az elméleti fizika szigorlatra készülést is, illetve kiegészítő tananyagként szolgál azon hallgatók számára, akik az alkalmazott fizika szakirányon belül  kevesebb elméleti fizika képzésben részesültek.",null,"Msc Fizikus",null,"Atom és molekulafizika  BMETE15MF02",null,3,1,{"$nulls":5},1]
[16,"BME FI ","Richter Péter, Sólyom András","Physics (MSc, angol nyelven)","Elméleti fizika",2,40,0,{"$nulls":3},1,null,0,0,{"$nulls":13},"A kvantummechanika alapjai, elektronok, fotonok, atomok, molekulák. Kvantumstatisztikák. Szilárd testek szerkezete, fémek, szigetelők, félvezetők, elektromos, optikai és mágneses tulajdonságok",{"$nulls":7},1,{"$nulls":5},1]
[17,"BME_FI","Sükösd Csaba","Kísérleti magfizika","Kísérleti Fizika",1,15,3,{"$nulls":3},1,null,{"v":780000,"d":"780,000"},{"v":222.22222222222223,"d":"222"},{"v":1225000,"d":"1,225,000"},"szöveg: LaTeX, animációk: Flash, ill. Delphi","szöveg .pdf, animációk: flv, exe ",{"v":400000,"d":"400,000"},null,23,200,null,10,10,{"$nulls":3},"Az atommag felépítése és jellemzői, a nukleonok jellemzői. Az atommag stabilitása, tömegdefektus, kötési energia. Folyadékcsepp modell és a félempirikus kötési-energia formula. Radioaktivitás: a radioaktív bomlás formái és jellemző mennyiségei. A radioaktív bomlás időbeli lefolyásának törvényszerűségei. alfa-, béta-, gamma-  bomlás. egyszerű bomlás, összetett bomlás, bomlási sorok. Töltött részek (alfa-, béta- sugárzás) kölcsönhatása az anyaggal. Gamma- és neutronsugárzás kölcsönhatása az anyaggal. A sugárzás gyengülése az anyagon való áthaladás során. Gáz-ionizációs detektorok, szcintillációs számlálók, félvezető detektorok. Ködkamra, termolumineszcens detektorok, szilárdtest nyomdetektorok. Neutrondetektorok. Magreakciók általános törvényei és fajtái; magreakciók mechanizmusai (direkt és összetett mag képződésével járó). Hatáskeresztmetszet (mikroszkopikus és makroszkopikus). Neutron magreakciók fajtái és jellemzői. Neutron magreakciók hatáskeresztmetszetének energiafüggése. A neutronlassítás elméletének alapjai. Gyorsneutronok, rezonancia-neutronok, termikus neutronok. A maghasadás mechanizmusa. Hasadványok, hasadási neutronok jellemzése. A maghasadásban felszabaduló energia, és annak térbeli, időbeli megoszlása. \nLáncreakció, önfenntartó láncreakció feltétele, sokszorozási tényező. Termikus atomreaktorok elvi felépítése. Hasadóképes izotópokat termelő magreakciók, szaporító reaktorok működésének alapjai. Részecskegyorsító berendezések. Linac, ciklotron, szinkrotron. LHC. \n","A Kísérleti fizika tárgyak alapozzák meg a fizika BSc hallgatók természettudományos világképét és gondolkodásmódját, ezért kiemelten fontosnak tartjuk az egységes szerkezetű, korszerű tananyag elkészítést. Az új tananyag elektronikus formában külső és belső hivatkozásokkal, színes ábrákkal, képekkel és videókkal segíti a tanulást, ugyanakkor a vizsgára való készüléshez a LaTeX szerkesztésnek köszönhetően a képletekkel és ábrákkal együtt tipográfiailag is szép formában kinyomtatható. ",{"$nulls":6},1,"Fizika",null,"Kísérleti magfizika",15,3,1]
[null,"BME FI ","összesen",{"$nulls":11},{"$f":"SUM(P3:P19)","v":{"v":18660000,"d":"18,660,000"}},0]
[18,"BME FI - ELTE FI","Koppa Pál, Újsághy Orsolya, Vankó Péter (szerkesztők), Beleznai Szabolcs, Sarkadi Tamás, O. Steinbach Cecilia, Sepsi Örs, Gombkötő Balázs,","Kísérleti fizika példatár","Kísérleti Fizika",8,{"$f":"2*AI21+180","v":180},{"$f":"2*AJ21+AP21","v":2},{"$nulls":3},1,null,{"v":600000,"d":"600,000"},{"$f":"S21/1800","v":{"v":277.77777777777777,"d":"278"}},{"v":4000000,"d":"4,000,000"},"Wikimédia ","Wikimédia ",{"v":500000,"d":"500,000"},null,27,200,{"$nulls":3},200,null,null,"Rövid elmélet – feladatok – ötletek – megoldások. Kinematika. Dinamika. Merev testek. Folyadékok. Rezgések és hullámok. Elektrosztatika, stacionáris áramok, magnetosztatika, indukció, eltolási áram. Maxwell-egyenletek vákuumban és anyagban. Elektromágneses rezgések és hullámok. Fénytörés, fényvisszaverődés. Fényhullámok interferenciája és diffrakciója. A speciális relativitáselmélet. Kinetikus gázelmélet. Termodinamika. Fázisátalakulások.A kvantummechanika alapjai.","A Kísérleti fizika tárgyak alapozzák meg a fizika BSc hallgatók természettudományos világképét és gondolkodásmódját, ezért kiemelten fontosnak tartjuk az egységes szerkezetű, korszerű tananyag elkészítést. A példatár egy-egy fejezete rövid elméleti öszefoglalóból, majd a feladatokból, a megoldást segítő ötletekből és a részletes megoldásból áll. A médiawiki formátum lehetővé teszi a feladatok tetszőleges csoportosítását, különböző foglalkozásokon való használatát és az egyéni gyakorlást is.",{"$nulls":4},0,null,1,"Fizika",null,"Kísérleti fizika gyakorlat 1. BMETE13AF05\nKísérleti fizika gyakorlat 2. BMETE13AF06\nKísérleti fizika 3. BMETE13AF04\n",280,2,1]
[19,"BME FI - ELTE FI","Beleznai Szabolcs, Dóczi Rita, Erdei Gábor, Fülöp Ferenc, Gombkötő Balázs, Halbritter András, Lenk Sándor, Maák Pál, Ujhelyi Ferenc, Vankó Péter, Vargáné Josepovits Katalin, Veress Máté, Wacha András ","Fizika laboratórium","Kísérleti Fizika",13,{"$f":"2*AI22+AO22","v":300},{"$f":"2*AJ22+AP22","v":4},{"$nulls":3},1,null,{"v":1700000,"d":"1,700,000"},{"$f":"S22/1800","v":{"v":333.3333333333333,"d":"333"}},{"v":7240000,"d":"7,240,000"},"Wikimédia ","Wikimédia ",{"v":600000,"d":"600,000"},null,60,500,null,null,20,60,null,null,"Elektromos egyenáramú alapmérések. Hőmérsékletérzékelők hitelesítése. A rugalmassági együttható meghatározása. Csatolt ingák vizsgálata V-scope-pal. Számítógépes mérések. RLC körök mérése. Folyadékok felületi feszültségének mérése. Vizsgálat oszcilloszkóppal. Fénysebesség mérése. Tehetetlenségi nyomaték vizsgálata. Állóhullámok megfeszített, rugalmas húrban. Folyadék szabad felszínének vizsgálata. Félvezető termoelem és Peltier-elem vizsgálata. Fajhő mérése. A kényszerrezgés vizsgálata. Granulált anyagok vizsgálata. Kaotikus kettős inga vizsgálata V-scope-pal. Folyadékok viszkozitásának mérése. Levegő nedvességtartalmának mérése. Optika I. Optika II. Folyadékkristályok vizsgálata. Sztatikus mágneses mező vizsgálata. Hullámjelenségek vizsgálata mikrohullámokkal. Millikan-kísérlet és szimuláció. Hőmérsékleti sugárzás vizsgálata. Fotoeffektus vizsgálata. Elektron fajlagos töltésének (e/m) mérése. Frank-Hertz kísérlet. Az elektron töltése és a Boltzmann-állandó hányadosának (e/k) mérése. A Planck és a Boltzmann-állandó hányadosának (h/k) mérése. Optikai heterodin detektálás és alkalmazásai. Kis fényintenzitások mérése: fázisérzékeny detektálás. Mérések spektrofotométerrel, hidrogén színkép vizsgálata. Gammasugárzás abszorpciója, folyadékszint- és sűrűségmérés. Bétasugárzás abszorpciójának és visszaszórásának vizsgálata, vastagságmérés. Pásztázó alagútmikroszkóp alkalmazása. Gigantikus mágneses ellenállás vizsgálata. Barkhausen-effektus vizsgálata. Hall-effektus vizsgálata. Piezoelektromos anyagok vizsgálata. Piroelektromos anyagok vizsgálata. Akuszto-optikai fénydiffrakció vizsgálata. Magnetooptikai Kerr-szög mérése. Gamma-sugárzás vizsgálata. Szcintillációs detektorok vizsgálata. Aalfa-spektroszkópia félvezető detektorral. Gáztöltésű detektorok vizsgálata. Optikai effektusok vizsgálata és optikai mérési módszerek, optoelektronikai eszközök vizsgálata, aktivációs analitika, neutrondetektálás, termikus neutron fluxus, késő neutron paraméterek vizsgálata, felületanalitikai mérési módszerek, vékonyrétegek készítése és vizsgálata.","A Kísérleti fizika tárgyak alapozzák meg a fizika BSc hallgatók természettudományos világképét és gondolkodásmódját, ezért kiemelten fontosnak tartjuk az egységes szerkezetű, korszerű tananyag elkészítést. A laboratóriumi tananyag a mérésekhez tartozó elméleti ismeretek összefoglalásán, a mérőeszközök és a mérési feladatok ismertetésén kívül segítséget ad a jegyzőkönyvek elkészítéséhez is. A médiawiki formátumban készülő tananyaghoz a legérdekesebb mérésekről videók készülnek, ami a fizikus szak népszerűsítését is segítheti.",{"$nulls":4},0,null,1,"Fizika",null,"Fizika laboratórium 1. BMETE13AF07\nFizika laboratórium 2. BMETE13AF08\nFizika laboratórium 3. BMETE13AF09\nFizika laboratórium 4. BMETE13AF10\nFizika laboratórium 5. BMETE12AF05\n",300,4,1]
[20,"BME FI - ELTE FI","Halbritter András (BME, felelős szerkesztő), Csonka Szabolcs (BME), Mihály György (BME), Kiss Gábor (BME), Csontos Miklós (BME) Zaránd Gergely (BME), Makk Péter (BME), Geresdi Attila (BME), Kürti Jenő (ELTE), Geszti Tamás (ELTE), Cserti József (ELTE), Oroszlány László (ELTE), Pályi András (ELTE), Vigh Máté (ELTE), Dávid Gyula (ELTE)","Nanofizika tudásbázis","Nanofizika",15,{"$f":"2*AI23+AO23","v":420},{"$f":"2*AJ23+AP23","v":6},{"$nulls":3},1,null,{"v":1520000,"d":"1,520,000"},{"$f":"S23/1800","v":{"v":555.5555555555555,"d":"556"}},{"v":8000000,"d":"8,000,000"},"Wikimédia ","Wikimédia ",{"v":1000000,"d":"1,000,000"},null,10,400,null,40,{"$nulls":4},"Atomi felbontású mikroszkópiai eljárások  (pásztázó alagútmikroszkóp, atomi erő mikroszkóp, elektronmikroszkóp, He-ion mikroszkóp)\nMintakészítési módszerek (elektronsugár litográfia, korszerű rétegleválasztási és marási módszerek: vákumgőzölés, porlasztás, CVD, önszerveződő leválasztás, kémiai marás, plazma ill. ionsugaras marás)\nA nanofizika alapjai (kvantum transzport, vezetőképesség kvantálás, interferenciajelenségek nanoszerkezetekben, kvantum Hall effektus, egyelektron tranzisztorok)\nSzén nanoszerkezetek (grafén, szén nanocsövek, fullerének)\nFélvezető nanoszerkezetek\nHibrid szupravezető - normál nanoszerkezetek\nMolekuláris Elektronika\nSpintronika\nKvantum számítógépek és kvantum kommunikáció\nNanomechanikai eszközök kvantummechanikai viselkedésének keresése\nNanoszerkezetek elméleti modellezése Green függvény technikákkal\nFunkcionális nanoszerkezetek kialakítása önrendeződéssel\nA nanorészecskék optikai tulajdonságai\n","A nanofizika rohamosan fejlődő tudományága alapvetően határozza meg a mindennapjainkat az egyre tágabb területeken megjelenő nanotechnikai újításoknak köszönhetően. Ezt a gyors fejlődést csak a szakirodalom folyamatos feldolgozásával lehet nyomon követni, a – jelenleg csak idegen nyelven rendelkezésre álló – szakkönyvekből is pár év elteltével már hiányoznak az alapvető jelentőségű legfrissebb eredmények.\n\nAz ELTE és BME természettudományi karainak együttműködésével egy Magyarországon egyedülálló nanofizikai iskola alakult ki. A két egyetem nanofizika iránt érdeklődő hallgatói széleskörű oktatást kapnak a nanofizika területén mind az elméleti alapokról, mind a legfrissebb kísérleti eredményekről mintegy 12 nanofizika témájú tárgy keretében.\n\nEzen tárgyak oktatói a pályázat keretében egy átfogó nanofizikai tudásbázis létrehozását tervezik. Ez a tudásbázis nem konkrét tárgyak tananyaga, hanem egy átfogó, a nanofizika legfrissebb eredményeit felvonultató ismeretterjesztő e-learning anyag, mely segítséget nyújt a nanofizika iránt érdeklődő hallgatóknak és kutatóknak a legfrissebb eredmények és bevált nanofizikai módszerek közötti tájékozódásban.",null,"BME-ELTE fizikus","Kutató Fizikus, Alkalmazott fizikus","Új kísérletek a Nanofizikában\nTranszport Komplex Nanoszerkezetekben\nNanofizika szeminárium és journal club (A Nature, Science, és egyéb vezető folyóiratokban frissen megjelenő eredmények nyomon követése) \nMikro és nanotechnológiák\nAlklamazott szilárdtestfizika \nMezoszkópikus rendszerek elmélete \nFélvezetők fizikája és félvezető nanoszerkezetek \nSzén nanoszerkezetek\nMezoszkópikus rendszerek fizikája I \nMezoszkópikus rendszerek fizikája II \nSzupravezető mezoszkópikus rendszerek \nÚj kísérletek a kvantummechanikában \nKvantumjelenségek elmélete\nMikro- és nanotechnológia\n",0,3,1,{"$nulls":3},420,null,1]
[null,"BME FI - ELTE FI","összesen",{"$nulls":11},{"$f":"SUM(P21:P23)","v":{"v":19240000,"d":"19,240,000"}},0]
[21,"BME MI","Wettl Ferenc","A lineáris algebra alkalmazásai","Matematika",1,{"v":2000,"d":"2,000"},{"$f":"2*AJ25+AP25","v":0},{"$nulls":3},1,null,{"$f":"V25*3000+W25*10000+Y25*10000+X25*8000","v":{"v":280000,"d":"280,000"}},{"$f":"S25/1800","v":{"v":138.88888888888889,"d":"139"}},{"v":2680000,"d":"2,680,000"},null,"PDF",{"v":250000,"d":"250,000"},null,15,30,10,10,1,{"$nulls":3},"Sztöchiometria, kémiai reakciók egyensúlya-Hálózatok, gráfok-Internetes keresés, Google-GPS-Hibajavító kódok-Kép és hangtömörítés-Jelfeldolgozás-Mögöttes tartalmak keresése-Kriptográfiai alkalmazások-Markov-láncok-Robotok geometriája-Lineáris differenciálegyenletek"]
[{"$f":"A25+1","v":22},"BME MI","Vetier András","Exercise Book to \"Probability Theory with Simulations\"","Matematika",1,{"v":2000,"d":"2,000"},{"$f":"2*AJ26+8","v":8},{"$nulls":3},3,null,{"v":600000,"d":"600,000"},{"$f":"S26","v":0},{"v":3080000,"d":"3,080,000"},"A köny Latex-vel, PDF fromátumban készül, benne linkek, melyek interaktív  EXCEL fájlokat aktivizálnak"," 75 fejezet",0,{"$nulls":3},30,0,30,{"$nulls":3},"Part-I: Probability of events-Introductory problems-Outcomes and events-Relative frequency and probability-Random numbers-Classical problems-Geometrical problems, uniform distributions-Basic properties of probability-Conditional relative frequency and conditional probability-Independence of events-Infinite sequences of events-Drawing with or without replacement. Permutations-Part-II: Discrete distributions-Discrete random variables and distributions-Uniform distribution (discrete)-Hyper-geometrical distribution-Binomial distribution-Geometrical distribution (pessimistic)-Geometrical distribution (optimistic)-Negative binomial distribution (pessimistic)-Negative binomial distribution (optimistic)-Poisson-distribution-Higher dimensional discrete random variables and distributions-Poly-hyper-geometrical distribution-Polynomial distribution-Generating a random variable with a given discrete distribution-Mode of a distribution-Expected value of discrete distributions-Expected values of the most important discrete distributionsExpected values of the most important discrete distributions-Expected value of a function of a discrete random variable-Part-III: Continuous distributions in one-dimension-Continuous random variables-Distribution function-Histogram-Uniform distributions-Distributions of some functions of random numbers-Arc-sine distribution-Cauchy distribution-Beta distributions-Exponential distribution-Generating a random variable with a given continuous distribution-Expected value of continuous distributions-Expected value of a function of a continuous random variable-Median-Standard deviation, etc.-Poisson-processes-Transformation from line to line-Part-IV: Two-dimensional continuous distributions-Two-dimensional random variables and distributions-Uniform distribution on a two-dimensional set-Beta distributions in two-dimensions-Projections and conditional distributions-Properties of the expected value, variance and standard deviation-Transformation from plane to line-Transformation from plane to plane-Sums of random variables. Convolution-Limit theorems to normal distributions-Part-V: Statistics-Regression in one-dimension-Regression in two-dimensions-Linear regression-Confidence intervals-U-tests-T-tests-Test with ANOVA (Analysis of variance)",{"$nulls":7},1,"Építőmérnöki Kar (ÉMK),Gépészmérnöki Kar (GPK),Építészmérnöki Kar (ÉPK),Vegyészmérnöki és Biomérnöki Kar (VBK),Villamosmérnöki és Informatikai Kar (VIK),Közlekedésmérnöki Kar (KSK),Gazdaság- és Társadalomtudományi Kar (GTK),Építőmérnöki Kar (ÉMK),Gépészmérnöki Kar (GPK),Építészmérnöki Kar (ÉPK),Vegyészmérnöki és Biomérnöki Kar (VBK),Villamosmérnöki és Informatikai Kar (VIK),Közlekedésmérnöki Kar (KSK),Gazdaság- és Társadalomtudományi Kar (GTK),Közép-Európai Egyetem",null,"Matematika A4 Valószínűségszámítás, Matematika A4 Valószínűségszámítás, Matematika A4 Valószínűségszámítás, Matematika A4 Valószínűségszámítás, Matematika A4 Valószínűségszámítás, Matematika A4 Valószínűségszámítás,Matematika A4 Valószínűségszámítás,Matematika A4 Valószínűségszámítás,Matematika A4 Valószínűségszámítás, Matematika A4 Valószínűségszámítás, Matematika A4 Valószínűségszámítás,Matematika A4 Valószínűségszámítás,Matematika A4, Valószínűségszámítás, Statistics with Excel",null,4,3]
[{"$f":"A26+1","v":23},"BME MI","Bolla Marianna","Gépi tanulási módszerek a statisztikában","Matematika",1,{"v":2000,"d":"2,000"},5,{"$nulls":3},2,null,{"v":90000,"d":"90,000"},150,{"v":2540000,"d":"2,540,000"},"LaTex","PDF",150,null,10,null,5,5,{"$nulls":4},"EM algoritmus és alkalmazás keverékek felbontására-ACE algoritmus általánosított regresszióra-Független komponens analízis (ICA), RKHS technikák-Dinamikus faktoranalízis idősorokra (AR faktorfolyamat)-Küszöbmodellek, probit- és logitanalízis-Varianciaanalízis általánosan: MANOVA és nemparaméteres ANOVA-Többszörös korrespondanciaanalízis többdimenziós tömbökre-Neurális hálók, SOM-Újramintavételezési eljárások: jackknife, bootstrap-Spektrális klaszteranalízis",{"$nulls":7},1,"Matematikus,Matematikus,Matematikus,Matematikus,nformatikus, Matematikus","Sztochasztika,Pénzügyi","Többváltozós startisztika BMETE95MM15,Többváltozós statisztika gazdasági alkalmazásokkal BMETE95MM18,Statisztikai módszerek az adatbányászatban  BMETE959307,Adatbányászat,Multivariate Staistics 97",null,5,3]
[24,"BME MI","Faragó István, Horváth Róbert","Numerikus módszerek példatár","Matematika",2,{"v":2000,"d":"2,000"},6,{"$nulls":3},1,null,{"v":15000,"d":"15,000"},150,{"v":2875000,"d":"2,875,000"},"LaTeX szövegszerkesztővel készült elektronikus jegyzet hiperhivatkozásokkal.","PDF",150,null,10,5,{"$nulls":3},250,null,null,"Közönséges differenciálegyenletek numerikus módszereinek bevezetése, a motiváció felvázolása. Egyszerű egylépéses módszerek ismertetése, elemzése. Az általános egylépéses módszerek vizsgálata, explicit és implicit Runge-Kutta-típusú módszerek. Konzisztencia\nvizsgálata, rendkorlátok. A zéró-stabilitás és a konvergencia. merev rendszerek, A-stabilitás. Prediktor-korrektor típusú módszerek. A módszerek realizálása  MATLAB programmal. Többlépéses módszerek, konzisztencia és stabilitás. Konvergencia, rendfeltétel. A módszerek realizálása  MATLAB programmal. Közönséges differenciálegyenletek kétpontos peremérték-feladatainak vizsgálata. Egzisztencia és unicitás. A numerikus megoldás előállítása belövéses módszerrel. Algortimikus realizálás, többszörös belövés módszere. A numerikus megoldás előállítása véges differenciák módszerével. Approximáció, stabilitás, konvergencia. A módszerek realizálása  MATLAB programmal. gyakorlati feladatok megoldása.",null,null,"Matematikus MSC","alkalmazott matematikus","ELTEmm3n1nmk",null,6,1,"Matematikus,Fizikus,Matematikus ,Matematikus ,",",elméleti fizika,alkalmazott analízis,alkalmazott analízis,","BMETE92AM00, numerikus módszerek,BMETE92AF03, numerikus módszerek,BMETE92MM07,ELTEmm1n1aa5e,",null,6,1]
[25,"BME MI","Küronya Alex, Pintér Döme","Multilinearis es homologikus algebra alkalmazasokkal ","Matematika",2,{"v":2000,"d":"2,000"},4,{"$nulls":3},1,null,{"v":45000,"d":"45,000"},{"$f":"S29/1800","v":{"v":111.11111111111111,"d":"111"}},{"v":2885000,"d":"2,885,000"},"LaTex","PDF",{"v":200000,"d":"200,000"},null,5,15,{"$nulls":3},150,null,null,"Multilineáris algebra-Algebrai geometriai és differenciálgeometriai alkalmazások-Homologikus algebra-Bevezetés az -algebrai topológiába-Fizikai alkalmazások",null,null,"matematikus Msc,matematikus Msc,matematikus Msc,matematikus Msc,matematikus Msc,matematikus Msc",null,"Haladó lineáris algebra,Homologikus algebra BMETE919204,Reprezentócióelmélet BMETE91MM02,Bevezetés az algebrai topológiába BMETE919214,Kommutatív algebra és algebrai geometria BMETE91MM01,Algebrai és általános kombinatorika BMEVISZM020",null,5,1,"matematikus Bsc,fizikus Bsc,ELTEmatematikus Bsc,",null,"Lineáris algebra,Lineáris algebra,Algebra ,",null,4,1]
[26,"BME MI","Tóth János, Lángné Lázi Márta, Lóczi Lajos","Glimpses of mathematics for students in cognitive science ","Matematika",3,{"v":2000,"d":"2,000"},{"$f":"2*AJ30+AP30","v":0},{"$nulls":3},2,null,{"v":550000,"d":"550,000"},300,{"v":3750000,"d":"3,750,000"},null,"PDF és esetleg .nb",300,null,10,null,25,25,10,{"$nulls":11},1,{"$nulls":5},1]
[27,"BME MI","Csákány Anikó, V.Nagy Éva","Feladattár a Bevezető matematika című felzárkóztató tantárgyhoz","Matematika",2,{"v":2000,"d":"2,000"},{"$f":"2*AJ31+AP31","v":0},{"$nulls":3},1,null,0,0,{"v":2800000,"d":"2,800,000"},"HTML","YOOMLA",{"$nulls":10},"Nulladik matematika zárthelyi gyakorló feladatsorok-Elemi algebrai műveletek, azonosságok, százalékszámítás-Elemi függvények tulajdonságai és ábrázolásuk-Egyenletek, egyenlőtlenségek-Egyenletrendszerek-Síkvektorok-Koordinátageometria-Számsorozatok-Síkgeometria-Térgeometria-Kombinatorika, valószínűségszámítás",{"$nulls":7},1,"BME, ELTE, alapképzés ","minden mérnök kar","Bvezető matematika(BMETEAX40)",null,null,1]
[28,"BME MI","Nagy Attila","Félcsoportelmélet (BMETE915005)","Matematika",1,{"v":2000,"d":"2,000"},{"$f":"2*AJ32+AP32","v":9},{"$nulls":3},1,null,0,200,{"v":2490000,"d":"2,490,000"},null," PDF",200,null,15,{"$nulls":7},"1. A félcsoport fogalma, az általánosított asszociativitás-, illetve kommutativitás tételei. Félcsoport kitüntetett elemei. A csoport fogalma. A csoport fogalmának ekvivalens definíciói. \n2. A részfélcsoport fogalma. Félcsoport elemének indexe, periódusa és rendje. Ciklikus félcsoportok. Félcsoport maximális részcsoportjai. \n3. Félcsoport egy- és kétoldali ideáljai. A Green-féle ekvivalenciarelációk. \nEgyszerű, balegyszerű, illetve 0-egyszerű, bal 0-egyszerű félcsoportok. \nMinimális, 0-minimális ideálok.\n4. Egy adott halmazon értelmezett binér relációk félcsoportja. Félcsoport kongruenciái. Rees-féle kongruenciák. Az ideálbővítés fogalma. Faktorfélcsoport. Félcsoport főfaktorai. Félcsoport homomorfizmusai. A homomorfizmustétel és az izomorfizmustételek. \n5. Félcsoport transzlációi és a reguláris reprezentáció. Félcsoport transzlációs burka. Gyengén reduktív félcsoportok. Gyengén reduktív félcsoportok ideálbővítésének vizsgálata.\n6. Félcsoport beágyazása csoportba, illetve csoportok uniójaként előálló félcsoportba. Egyszerűsítéses félcsoport, jobb reverzibilis félcsoport, szeparatív félcsoport.  Félcsoport legszűkebb szeparatív kongruenciájának leírása.\n7.Reguláris, teljesen reguláris félcsoport. Inverz félcsoport. Reguláris félcsoportok kongruenciá. \nCsoportok félhálója és erős félhálója, a Clifford félcsoport.\n8. A teljesen egyszerű félcsoport, a Rees matrix félcsoport. \n9. Félcsoport legszűkebb félhálókongruenciájának leírása. Félhálófelbonthatatlan félcsoportok, arkhimédeszi félcsoportok. \nPutcha-félcsoportok. Köteg felbontása derékszögű kötegek félhálójára.\n10. Félcsoportok direkt, illetve szubdirekt szorzata, jellemzésük kongruenciák segítségével.\n11. Szubdirekt irreducibilis félcsoportok speciális félcsoportosztályokban..\n12. Félcsoportok jellemzése a kongruenciahálójuk alapján (-félcsoport, permutálható félcsoport).\n13. Véges félcsoportok: félcsoportalgebra. félcsoport Rhodes-radikálja. \n14. Félcsoportok mátrixreprezentációja. \n15. Automataelméleti alkalmazások: Automaták jellemzése karakterisztikus félcsoportjuk segítségével. ",null,null,"Matematika BsC, MsC","Elméleti","Félcsoportelmélet (BMETE915005)",null,3,1,"Matematikus BsC, ","Elméleti","Félcsoportelmélet (BMETE915005)",null,3,1]
[29,"BME MI","Gazdag-Tóth Boglárka","Optimalizálási rendszerek","Matematika",1,{"v":2000,"d":"2,000"},{"$f":"2*AJ33+AP33","v":0},{"$nulls":3},1,null,{"v":30000,"d":"30,000"},150,{"v":2430000,"d":"2,430,000"},"szövegszerkeszto\"ben írnám, bármely browserrel nézhet? lenne","XML/HTML",150,{"$nulls":3},3,null,null,15,{"$nulls":10},1,{"$nulls":5},1]
[30,"BME MI","Babcsányi István","Nyelvek és automaták","Matematika",1,{"v":2000,"d":"2,000"},{"$f":"2*AJ34+AP34","v":6},{"$nulls":3},1,null,0,200,{"v":2460000,"d":"2,460,000"},null,"PDF","46 fejezet",null,46,{"$nulls":7},"I. Formális nyelvek\nA nyelv fogalma. Nyelvalgebrák. Generatív grammatikák. Chomsky nyelvosztályok.\nReguláris nyelvek. Lineáris egyenletek megoldása nyelvalgebrában.\nKörnyezetfüggetlen nyelvek. Chomsky normálforma. Bar-Hillel lemma. Felesleges szimbólumok kiküszöbölése. Bal oldali levezetések. Greibach normálforma. Reguláris \nkörnyezetfüggetlen nyelvek. Homomorf jellemzés. Környezetfüggetlen kifejezések.\nKleene algebrák. Parikh függvények. LL(k) és LR(k) grammatikák.   \nKörnyezetfüggő nyelvek. Mondatszerkezetű nyelvek. Eldönthetőségi kérdések.\nII. Nyelvek és automaták\nNyelvek előállítása automatákban. Véges automatákban előállítható nyelvek.\nKleene tétele. Veremautomaták és a környezetfüggetlen nyelvek.\nDeterminisztikus nyelvek. Fautomaták. A környezetfüggetlen nyelvek és a fautomaták.\nTuring automaták és a mondatszerkezetű nyelvek. Rekurzív nyelvek.\nIII. Speciális nyelvosztályok\nVéges nyelvek. Kommutatív nyelvek. Nilpotens nyelvek. Definit nyelvek. Lokálisan \ntesztelhető nyelvek. Irányítható automatában előállítható nyelvek. Diszjunktív nyelvek.\nIV. Változó hosszúságú kódok\nA kód fogalma és mértéke. Maximális kódok Sűrű és ritka kódok. Prefix kódok algebrája.\nSzemafor kódok. Bifix kódok. Hiperkódok. Kódok és automaták. Hibajavító kódok.\nOptimális kódok.   \nV. Végtelen szavak\nA végtelen szó fogalma. Büchi automaták. Kleene tétele végtelen szavakra.",null,null,"matematikus","MSC,PhD","Nyelvek és automatákBMETE915023,Szabad félcsoportok és kódokBMETE915037",null,3,1,{"$nulls":5},1]
[31,"BME MI","Nagy Lajos, Sereny Gyorgy","Villamosmernoki targyakhoz adaptalt halado matematikai","Matematika",3,{"v":2000,"d":"2,000"},6,{"$nulls":3},3,null,{"v":210000,"d":"210,000"},150,{"v":3470000,"d":"3,470,000"},null,null,"150 oldal",null,10,70,{"$nulls":14},1,"VIK","Villamosmérnöki,Villamosmérnöki,Villamosmérnöki,Informatikai","Elektromágneses terek VIHVA204,Jelek és rendszerek 1.  VIHVA 109,Jelek és rendszerek  2.  VIHVA 200,Jelek és rendszerek VIHVA 214",null,6,3]
[32,"BME MI","Győrfi Zoltán, Molnár László","A geometria alapjainak oktatása a hiperbolikus geometria egy fizikai modelljéből kiindulva.","Matematika",1,{"v":2000,"d":"2,000"},{"$f":"2*AJ36+AP36","v":0},{"$nulls":3},1,null,0,0,{"v":2400000,"d":"2,400,000"},{"$nulls":20},1,{"$nulls":5},1]
[33,"BME MI","V.Nagy Éva, Szilágyi Brigitta, Lázi Márta, Tóth János, Fűzfa Balázs","Elmeszeletek","Matematika",6,{"v":2000,"d":"2,000"},6,{"$nulls":3},3,null,{"v":300000,"d":"300,000"},600,{"v":4760000,"d":"4,760,000"},null,"PDF",600,null,11,50,15,null,null,"500 tesztfeladat",null,null,"Versenyfelkészítő anyagok-Versenyfelkészítő anyagok geometriából-Versenyfelkészítő anyagok egyváltozós analízisből-Versenyfelkészítő anyagok többváltozós analízisből-Versenyfelkészítő anyagok lineáris algebrából-Versenyfelkészítő anyagok számelméletből-Az egyváltozós analízis mérnöki alkalmazásai-Az többváltozós analízis-Vektoranalízis mérnöki alkalmazásai mérnöki alkalmazásai-Differenciálegyenletek-Differenciálegyenletek közelítő megoldásai-Önellenörzést segítő elméleti tesztek-Önellenörzést segítő tesztfeladatok-Módszertani jegyzetek",{"$nulls":7},1,"mérnök és gazdasági szak",null,"reguláris matematika",null,6,3]
[34,"BME MI"," Kónya Ilona, Pataki Gergely, Tasnádi Tamás","Analízis 2. Informatikusoknak. ","Matematika",4,{"v":2000,"d":"2,000"},0,{"$nulls":3},2,null,{"v":150000,"d":"150,000"},null,{"v":3750000,"d":"3,750,000"}," LaTeX rendszer, futtatói: PDF nézegető","PDF nézegető","500000 leütés (250 oldal) elmélet és 300000 leütés (150 oldal) példatár.",null,4,50,{"$nulls":6},"Közönséges differenciálegyenletek-Függvénysorok-Többváltozós függvények-Komplex függvénytan",{"$nulls":7},1," VIK,egyéb műszaki jellegű egyetemek, főiskolák"," mérnök-informatikus szak,villamosmérnök szak","analízis2, BMETE90AX05,Matematika A2, BMETE90AX02",null,null,2]
[35,"BME MI","Barabás Béla,Fülöp Otília","Építész matematika 2.","Matematika",2,{"v":2000,"d":"2,000"},0,{"$nulls":3},1,null,0,0,{"v":2800000,"d":"2,800,000"},"LaTeX","PDF",null,null,11,0,0,0,0,"400 feladat",null,null,"Koordináta geometria 3 dimenzióban-Lineáris vektortér-Lineáris egyenletrendszerek-Komplex számok-Mátrixok sajátértékei, sajátvektorai, főtengely tétel-Közönséges elsőrendű differenciálegyenletek-Közönséges másodrendű differenciálegyenletek-Kétváltozós függvények differenciálszámítása-Kettősintegrál alkalmazásai-Térgörbék differenciálgeometriája-Felületek differenciálgeometriája",{"$nulls":7},1,{"$nulls":5},1]
[36,"BME MI","Balázs Márton, Tóth Bálint","Valószínűségszámítás 1. jegyzet matematikusoknak és fizikusoknak","Matematika",2,{"v":2000,"d":"2,000"},4,{"$nulls":3},1,null,0,0,{"v":2840000,"d":"2,840,000"},"LaTex","PDF",null,null,8,{"$nulls":4},267,null,null,"Kombinatorikai összefoglaló -A valószínûségszámítás alapjai \nFeltételes valószínûség \nDiszkrét valószínûségi változók \nFolytonos valószínûségi változók \nEgyüttes eloszlások \nA várható érték tulajdonságai \nNagy számok törvénye, Centrális határeloszlástétel \n\n",{"$nulls":7},1,"BME TTK matematikus, fizikus ",null,"Valószínűségszámítás 1.",null,4,1]
[37,"BME MI","Szép Gabrella","Feladelme (feladatgyűjtemény továbbfejlesztés)","Matematika",1,{"v":2000,"d":"2,000"},0,{"$nulls":3},1,null,{"v":800000,"d":"800,000"},120,{"v":3200000,"d":"3,200,000"},"NETBEANS, JAVA+JSF","ORACLE DB+WAR+PDF,PNG,TEX",{"$nulls":10},"Elemi térgeometria-Függvénysorok",{"$nulls":7},1,{"$nulls":5},1]
[38,"BME MI","Csákány Anikó,Sándor Csaba, Vetier András","Új munkatársak módszertani felkészítése az oktatásban való részvételre","Matematika",3,{"v":2000,"d":"2,000"},6,{"$nulls":3},1,null,0,{"$f":"S42/1800","v":{"v":9.444444444444445,"d":"9"}},{"v":3260000,"d":"3,260,000"},null,null,{"v":17000,"d":"17,000"},{"$nulls":9},"Mit kell tudni az oktatás megkezdése előtt a körülményekről?-Mit kell tudni az oktatás megkezdése előtt az oktatott-tantárgyról?-Mit kell tudni a mérnökhallgatókról?-Hogyan kell felkészülni az órára? - Tanácsok az első óra megtartásához-Milyen fogásokkal segíthetem az oktatói munkám hatékonyságát? -Hogyan értékelhetem a saját munkámat az óra megtartása után? -Segédanyag az új munkatárs számára a mentorral való kapcsolattartáshoz-Segédanyag az oktatási mentor számára-Segédanyag az új munkatárs tevékenysége utólagos értékeléséhez a félév végén",null,null,"Matematikus MSc,alkalmazott matematikus MSc,fizikus MSc,PhD képzés fizika,PhD képzés matematika",null,"Oktatásmódszertan",null,2,1,"matematika BSc,fiziks BSc,",null,"Oktatásmódszertan",null,2,1]
[39,"Ibl Miklós ","Bölcskey"," Ábrázoló geometria példákon keresztül II.","Matematika",2,{"v":2000,"d":"2,000"},3,{"$nulls":3},1,null,{"v":60000,"d":"60,000"},{"$f":"S43/1800","v":280},{"v":2890000,"d":"2,890,000"},"MS Wordben előkészített forgatókönyvek alapján AutoCADben készülnek el a modellek. A kész videokat professzionális rendszerrel rögzítjük.","pdf fájlok amelyek a feladatokat ill. avi fájlok, amelyek a részletes megoldásokat videonak feldolgozva tartalmazzák.",{"$f":"14*20*1800","v":{"v":504000,"d":"504,000"}},null,null,20,{"$nulls":3},35,{"$nulls":10},1,"gépész BSc,terméktervező BSc,építészmérnök,építészmérnök,építőmérnök",null,"Ábrázoló geometria 2 BMETE94AX02,Ábrázoló geometria 2 BMETE94AX03,Ábrázoló geometria II SGYMASZ205XXX,Építészeti ábrázoló SGYMASZ211XXX,Építők geometriája  SGYMASZ282XXX",null,3,1]
[null,"BME MI","összesen",{"$nulls":11},{"$f":"SUM(P25:P43)","v":{"v":57360000,"d":"57,360,000"}},0]
[45,"BME NTI","Aszódi Attila, Kiss Attila","Atomerőművi anyagvizsgálatok",null,2,{"$f":"2*AJ45+AP45","v":6},{"$f":"2*AJ45+AP45","v":6},{"$nulls":5},{"$f":"V45*3000+W45*10000+Y45*10000+X45*12000","v":{"v":450000,"d":"450,000"}},100,{"$f":"N45+F45*400000+H45*10000","v":{"v":1310000,"d":"1,310,000"}},"Wikimédia","Wikimédia",{"v":160000,"d":"160,000"},8,100,10,20,10,10,{"$nulls":3},"Nyomottvizes atomerőművek primer és szekunder köri főberendezéseinek ellenőrzési módszerei, az atomerőművi környezet által okozott speciális szempontok. Üzemelő és leállított reaktor mellett alkalmazott vizsgálati eljárások, hibadetektálási technikák. Rea","Hiánypótló, teljesen új jegyzet",null,"Fizikus","nukleáris szakirány","Atomerőművi anyagvizsgálatok",15,2,1,"Energetikai mérnök",null,"Atomerőművi anyagvizsgálatok",15,2,1]
[46,"BME NTI","Bencze Attila, Berta Miklós, Veres Gábor","Measurements in COMPASS tokamak plasmas","FUSENET",3,8,{"$f":"2*AJ46+AP46","v":8},{"$nulls":5},{"$f":"V46*4000+W46*10000+Y46*10000+X46*12000","v":{"v":186000,"d":"186,000"}},30,{"$f":"2*N46+F46*400000+H46*10000+G46*12000","v":{"v":1748000,"d":"1,748,000"}},"Wikimédia","Wikimédia",null,3,null,null,3,3,12,{"$nulls":3},"Mérési útmutatók a magyar oktatók által, a prágai COMPASS tokamakon vezetett gyakorlatokhoz: Gyorskamerás mérések és kiértékelésük. Li-nyalábos emissziós spektroszkópiai mérések. Atom Nyaláb Szonda mérések.","Teljesen új",null,"Fizikus","nukleáris szakirány","Fúziós plazmafizika laboratórium",15,4,2,{"$nulls":5},2]
[47,"BME NTI","Dunai Dániel, Kálvin Sándor, Kocsis Gábor, Szepesi Tamás, Zoletnik Sándor","Fejezetek a magas hőmérsékletű kísérleti plazmafizikából","FUSENET",5,12,{"$f":"2*AJ47+AP47","v":12},{"$nulls":5},{"$f":"V47*4000+W47*10000+Y47*10000+X47*12000","v":{"v":260000,"d":"260,000"}},130,{"$f":"2*N47+F47*400000+H47*10000+G47*12000","v":{"v":2784000,"d":"2,784,000"}},"Wikimédia","Wikimédia",{"v":300000,"d":"300,000"},11,200,null,4,10,10,{"$nulls":3},"Fejezetek a magas hőmérsékletű kísérleti plazmafizikából\nTematika:  Bevezetés a kísérleti magas hőmérsékletű plazmafizikába,Mágneses tér toroidális berendezésekben,  Hullámok plazmákban,  Passzív és aktív spektroszkópia,  Plazma-fal kölcsönhatás, SOL,  Pe","Nincs még ilyen anyag",null,"Fizikus","nukleáris szakirány","tervezett: Kísérleti plazmafizika I.-II.",10,6,3,{"$nulls":5},3]
[49,"BME NTI","Pokol Gergő, Zoletnik Sándor, Papp Gergely","Bevezetés a fúziós plazmafizikába","FUSENET",3,6,{"$f":"2*AJ48+AP48","v":6},{"$nulls":5},{"$f":"V48*4000+W48*10000+Y48*10000+X48*12000","v":{"v":600000,"d":"600,000"}},200,{"$f":"2*N48+F48*400000+H48*10000+G48*12000","v":{"v":2532000,"d":"2,532,000"}},"Wikimédia","Wikimédia",{"v":200000,"d":"200,000"},12,200,10,20,20,12,{"$nulls":3},"Energiatermelés, fúziós reaktor felépítése, Lawson-kritérium, plazma alapok. ;* Inerciális fúzió. ;* Töltött részecskék ütközésmentes mozgása mágneses térben.;* Termodinamikai egyensúly, ionizációs és sugárzási folyamatok plazmában. ;* Mágneses összetar","A fúziós modulon belül ez a bevezető tárgy, amit a hallgatók akár már BSc képzésben felvehetnek, és közérthetősége folytán mérnök hallgatóknak is ajánlott. A tárgyhoz eddig nem létezett használható jegyzet.",null,"Fizikus, Energetikai mérnök","nukleáris szakirány","Bevezetés a fúziós plazmafizikába",5,2,3,"Fizikus",null,"Bevezetés a fúziós plazmafizikába",10,2,3]
[50,"BME NTI","Pokol Gergő, Pusztai István (Chalmers, Göteborg)","Collisional transport in magnetized plasmas","FUSENET",2,8,{"$f":"2*AJ49+AP49","v":8},{"$nulls":5},{"v":520000,"d":"520,000"},{"$f":"11*30","v":330},{"v":2016000,"d":"2,016,000"},"Moodle (SCORM)","SCORM",{"v":40000,"d":"40,000"},10,20,5,10,0,40,{"$nulls":3},"A tantárgy a Per helander, Dieter J. Sigmar: Collisional transport in magnetized plasmas című könyv első 11 fejezetére épül. A bevezető fejezet után a könyv a fizika alaptörvényeiből kiindulva építi fel a mágnesezett forró plazmák ütközéses klasszikus és ","A tananyag egy meglévő könyvre épülő e-learning kurzus lenne, ami akár autonóm tanulással is elsajátítható. Az egyetemi gyakorlatban ezt kontakt órák egészítik ki.",null,"Fizikus","nukleáris szakirány","Collisional transport in magnetized plasmas",4,4,3,{"$nulls":5},3]
[51,"BME NTI"," Pokol Gergő, Bencze Attila","Fúziós nagyberendezések","FUSENET",2,6,{"$f":"2*AJ50+AP50","v":6},{"$nulls":5},{"v":540000,"d":"540,000"},120,{"v":2012000,"d":"2,012,000"},"Wikimédia","Wikimédia",{"v":200000,"d":"200,000"},13,200,null,20,20,10,{"$nulls":3},"A tantárgy röviden ismerteti a mágneses összetartásra alapozott fúziós energiatermelés elvét és bemutatja a fúziós energiatermelés megvalósításához szükséges technológiai rendszereket. Ezután történelmi bevezető, és a mai - már üzemelő, és még épülő - leg",null,null,"Fizikus","nukleáris szakirány","Fúziós nagyberendezések",10,3,3,{"$nulls":5},3]
[52,"BME NTI","Pór Gábor, Pokol Gergő, Kovácsik Ákos, Réfy Dániel Imre, Papp Gergely, Náfrádi Gábor"," Fúziós projektlabor","FUSENET",6,12,{"$f":"2*AJ51+AP51","v":12},{"$nulls":5},{"v":580000,"d":"580,000"},60,{"v":3824000,"d":"3,824,000"},"Moodle (SCORM)","SCORM",{"v":80000,"d":"80,000"},5,20,5,10,5,40,{"$nulls":3},"A kurzus hallgatói saját fejlesztésű mérőberendezéseket hoznak létre. Ennek során előbb megismerkednek az adott berendezésfajta irodalmával, közben a már elkészült kísérleti berendezéseken méréseket végeznek, illetve a GOLEM tokamakon (Prága) távméréseket","Jelenleg ilyen projektlabor nálunk (fúziós oktatási területen) nem fut (Amerikában a projektlabor igen elterjedt). A hallgatók a labor során sokkal jobban átlátják a fúziós berendezések egyes elemeinek működését, a mérések során fellépő zavaró effektusoka",null,"Fizikus","nukleáris szakirány","tervezett: Fúziós projektlabor",5,6,2,{"$nulls":5},2]
[53,"BME NTI","Bencze Attila, Buday Csaba, Veres Gábor","Az elméleti plazmafizika alapjai","FUSENET",3,6,{"$f":"2*AJ52+AP52","v":6},{"$nulls":5},{"v":242000,"d":"242,000"},150,{"v":1816000,"d":"1,816,000"},"Wikimédia","Wikimédia",{"v":200000,"d":"200,000"},12,12,12,null,12,5,{"$nulls":3}," Statisztikus fizikai alapok, az eloszlásfüggvény. Az ütközési operátor: Boltzmann és Landau operátor. Boltzmann-egyenlet, Vlaszov-egyenlet.\n- Coulomb-ütközések, Debye-árnyékolás, plazmaparaméter.\n- A kinetikus egyenlet momentumai, a lezárás problematikáj","A témakörben egyetlen magyar nyelvű jegyzet érhető el.",null,"Fizikus","kutatófizikus","Az elméleti plazmafizika alapjai",7,3,3,{"$nulls":5},3]
[54,"BME NTI","Bencze Attila, Buday Csaba, Veres Gábor","Magnetohidrodinamika alacsonydimenziós rendszerekben","FUSENET",3,6,{"$f":"2*AJ53+AP53","v":6},{"$nulls":5},{"v":98000,"d":"98,000"},150,{"v":1528000,"d":"1,528,000"},"Wikimédia","Wikimédia",{"v":200000,"d":"200,000"},12,12,12,null,null,5,{"$nulls":3},"Az ideális MHD egyenletek rendszere, az elmélet érvényességi határai;Az egyenletek konzervatív alakja, megmaradási mennyiségek az ideális MHD-ban;Az MHD erőoperátor és tulajdonságai, spektrál analízis, az energia egyenlet;Peremfeltételek az MHD-ban;Hosszú","A témakörben nincs magyar nyelvű jegyzet.",null,"Fizikus","kutatófizikus","Magnetohidrodinamika alacsony dimenziós rendszerekben",7,3,2,{"$nulls":5},2]
[55,"BME NTI","Kis Dániel Péter, Makai Mihály"," Global Reaktor Calculations",null,2,8,{"$f":"2*AJ54+AP54","v":8},{"$nulls":5},{"$f":"V54*3000+W54*10000+Y54*10000+X54*8000","v":124000},250,{"$f":"N54+F54*400000+H54*10000+G54*12000","v":{"v":1100000,"d":"1,100,000"}},"LateX","PDF",400000,10,100,4,3,4,5,{"$nulls":3},"Operation, planning, surveillance, and supervision of nuclear power plans demand an effective calculation model of the nuclear reactor core. A part of that model is a method for the solution of the diffusion equation in the entire reactor. The problem is ","A Reaktorfizika elődás kibővített változata",{"$nulls":6},2,"Fizikus, Energetikai mérnök",null,"Reaktorfizika, Reaktorfizika mérnököknek",10,8,2]
[56,"BME NTI","Makai Mihály, Pokol Gergő, Papp Gergely","Bevezetés a transzportelméletbe","FUSENET",3,16,{"$f":"2*AJ55+AP55","v":16},{"$nulls":5},{"$f":"V55*4000+W55*10000+Y55*10000+X55*12000","v":{"v":550000,"d":"550,000"}},400,{"$f":"2*N55+F55*400000+H55*10000+G55*12000","v":{"v":2652000,"d":"2,652,000"}},"Wikimédia","Wikimédia",{"v":560000,"d":"560,000"},29,200,5,15,15,20,{"$nulls":3},"Kinetikus egyenlet, ütközési integrál. Entrópia, egyensúlyi állapot. Ideális gáz, van der Waals gáz, viriálegyütthatók. Debye-Hückel-elmélet. Transzport jelenségek, mérlegek. Boltzmann-egyenlet nemegyensúlyi állapotban. Fokker-Planck-egyenlet. Plazmatrans","Nincs ilyen magyar nyelvű anyag",null,"Fizikus","nukleáris szakirány","Bevezetés a plazmatranszportba, Bevezetés a transzportelméletbe",5,8,2,{"$nulls":5},2]
[57,"BME NTI","Sáfrány Géza, Pesznyák Csilla","Sugárbiológia","Fizika",2,36,{"$f":"2*AJ56+AP56","v":36},{"$nulls":5},{"$f":"V56*3000+W56*10000+Y56*10000+X56*8000","v":{"v":582000,"d":"582,000"}},350,{"$f":"N56+F56*400000+H56*10000","v":{"v":1742000,"d":"1,742,000"}},"LaTex","PDF",{"v":1035000,"d":"1,035,000"},23,50,null,2,4,53,{"$nulls":3},"A sugárbiológia elmélete és példatár a sugárbiológia alkalmazása a sugárterápiában témakörben.","Sugárbiológia tankönyv Magyarországon utoljára Várterész Vilmos írt 1963-ban a Medicina Kiadó közreműködésével. A Köteles György szerkesztésében megjelent Sugáregészségtan c. könyv néhány fejezetében ismerteti a sugárbiológia újabb felfedezéseit, de ez a ",null,"BME Fizikus, SE Klinikai sugárfizikus, Szent István Egyetem Állatorvosi szak, DOTE Klinikai sugárfizikus, PTE AOK Gyógyszerész, Miskolci Egyetem Orvosi laboratóriumi és képalkotó diagnosztikai analitikus, PTE Orvosi laboratóriumi és képalkotó diagnosztikai analitikus, Szegedi Tudományegytem Fizikus, SE Általános orvos",null,"Sugárbiológia",100,18,1,{"$nulls":5},1]
[59,"BME NTI","Szabó Bálint","Fizikusi elektronikai gyakorlatok","nukaleáris",1,{"$f":"2*AJ57+AP57","v":2},{"$f":"2*AJ57+AP57","v":2},{"$nulls":5},{"$f":"V57*3000+W57*10000+Y57*10000+X57*8000","v":{"v":236000,"d":"236,000"}},50,{"$f":"N57+F57*400000+H57*10000+G57*12000","v":{"v":680000,"d":"680,000"}},"Wikimédia","Wikimédia",{"v":80000,"d":"80,000"},7,100,0,5,2,17,{"$nulls":3},"Billenő áramkörök készítése, vizsgálata, jelterjedés vizsgálata; Műveleti erősítők alapkapcsolásainak építése, vizsgálata; nagyfrekvenciás működés, Miller-effektus vizsgálata; Schmitt trigger és relaxációs oszcillátor építése, vizsgálata; Koincidencia ára","Jelenleg nincs a fizikus alapképzésben multimédiás, elektronikát oktató tananyag.",{"$nulls":6},1,"Fizikus",null,"Elektronika laboratórium",50,2,1]
[60,"BME NTI","Szalóki Imre","Röntgen- és gammaspektrometria","nukaleáris",1,{"$f":"2*AJ58+AP58","v":10},{"$f":"2*AJ58+AP58","v":10},{"$nulls":5},{"$f":"V58*3000+W58*10000+Y58*10000+X58*8000","v":{"v":50000,"d":"50,000"}},130,{"$f":"N58+F58*400000+H58*10000+G58*12000","v":{"v":670000,"d":"670,000"}},"LaTex","PDF",{"v":200000,"d":"200,000"},8,50,{"$nulls":3},5,{"$nulls":3},"Röntgensugárzás tulajdonságai: Röntgensugárzás és anyag kölcsönhatásai: fotoelektromos jelenség, Compton-szórás, hatáskeresztmetszet, abszorpció, reflexió, polarizáció, Bragg-reflexió, röntgendiffrakció, fékezési és a karakterisztikus röntgensugárzás, ato","Jelenleg nincs ilyen terjedelmű, a témát teljesen felölelő áttekintő oktatási anyag a magyar felsőoktatásban.",null,"Fizikus, Energetikai mérnök",null,"Röntgen- és gamma spektrometriai módszerek",8,4,1,"Fizikus",null,"Nukleáris méréstechnika",15,2,1]
[null,"BME NTI","összesen",{"$nulls":11},{"$f":"SUM(P44:P58)","v":{"v":26414000,"d":"26,414,000"}},0]
[{"$f":"A58+1","v":61},"BME SZIT","Györfi László","Nemparaméteres statisztika","számítástudomány",1,{"$f":"2*AJ60+AP60","v":15},5,{"$nulls":5},{"v":120000,"d":"120,000"},null,{"v":585000,"d":"585,000"},{"$f":"'[1]összes (2)'!P3","v":"szöveg: LaTeX, videók: wikimédia"},{"$f":"'[1]összes (2)'!Q3","v":".pdf + wikimédia (videók)"},{"$f":"'[1]összes (2)'!R3","v":{"v":400000,"d":"400,000"}},null,{"$f":"'[1]összes (2)'!S3","v":0},{"$f":"'[1]összes (2)'!T3","v":19},{"$f":"'[1]összes (2)'!U3","v":200},{"$f":"'[1]összes (2)'!V3","v":0},{"$f":"'[1]összes (2)'!W3","v":0},{"$f":"'[1]összes (2)'!X3","v":10},{"$f":"'[1]összes (2)'!Y3","v":0},null,{"$f":"'[1]összes (2)'!AA3","v":0},{"$f":"'[1]összes (2)'!AB3","v":"Tömegpont kinematikája;Tömegpont dinamikája;Mozgások leírása különböző vonatkoztatási rendszerekben;Munka és energia;Pontrendszerek mechanikája;Merev testek mozgása;Szilárd testek alakváltozása;Hidrosztatika;Felületi jelenségek;Folyadékok és gázok áramlása;Szabad rezgések;Kényszerrezgés, rezonancia;Rezgések összetevése és felbontása, csatolt rezgések;Hullámok;Energiaterjedés mechanikai hullámokban;Visszaverődés és törés;Interferencia, elhajlás, állóhullámok;Doppler-effektus;Hang és fény, hangszerek, ultrahang;"},null,{"$f":"'[1]összes (2)'!AD3","v":0},{"$f":"'[1]összes (2)'!AE3","v":0},{"$f":"'[1]összes (2)'!AF3","v":0},{"$f":"'[1]összes (2)'!AG3","v":"Atom és molekulafizika  BMETE15MF02"},{"$f":"'[1]összes (2)'!AH3","v":0},1,{"$f":"'[1]összes (2)'!AJ3","v":1},{"$f":"'[1]összes (2)'!AK3","v":"Fizika"},{"$f":"'[1]összes (2)'!AL3","v":0},{"$f":"'[1]összes (2)'!AM3","v":"Kísérleti fizika 1. BMETE13AF02"},{"$f":"'[1]összes (2)'!AN3","v":15},1,{"$f":"'[1]összes (2)'!AP3","v":1}]
[{"$f":"A60+1","v":62},"BME SZIT","Fleiner Tamás","Számítástudomány alapjai","számítástudomány",1,15,{"$f":"2*AJ61+AP61","v":15},{"$nulls":5},{"$f":"V61*3000+W61*10000+Y61*10000+X61*8000","v":{"v":2036000,"d":"2,036,000"}},null,{"v":2601000,"d":"2,601,000"},{"$f":"'[1]összes (2)'!P4","v":"szöveg: LaTeX, videók: wikimédia"},{"$f":"'[1]összes (2)'!Q4","v":".pdf + wikimédia (videók)"},{"$f":"'[1]összes (2)'!R4","v":{"v":500000,"d":"500,000"}},null,{"$f":"'[1]összes (2)'!S4","v":0},{"$f":"'[1]összes (2)'!T4","v":12},{"$f":"'[1]összes (2)'!U4","v":200},{"$f":"'[1]összes (2)'!V4","v":0},{"$f":"'[1]összes (2)'!W4","v":0},{"$f":"'[1]összes (2)'!X4","v":10},{"$f":"'[1]összes (2)'!Y4","v":0},null,{"$f":"'[1]összes (2)'!AA4","v":0},{"$f":"'[1]összes (2)'!AB4","v":"Elektrosztatika, stacionáris áramok, magnetosztatika, indukció, eltolási áram. Maxwell-egyenletek vákuumban és anyagban. Elektromágneses rezgések és hullámok. Fénytörés, fényvisszaverődés. Fényhullámok interferenciája és diffrakciója. A speciális relativitáselmélet."},null,{"$f":"'[1]összes (2)'!AD4","v":0},{"$f":"'[1]összes (2)'!AE4","v":0},{"$f":"'[1]összes (2)'!AF4","v":0},{"$f":"'[1]összes (2)'!AG4","v":0},{"$f":"'[1]összes (2)'!AH4","v":0},1,{"$f":"'[1]összes (2)'!AJ4","v":1},{"$f":"'[1]összes (2)'!AK4","v":"Fizika"},{"$f":"'[1]összes (2)'!AL4","v":0},{"$f":"'[1]összes (2)'!AM4","v":"Kísérleti fizika 1. BMETE13AF02"},{"$f":"'[1]összes (2)'!AN4","v":15},1,{"$f":"'[1]összes (2)'!AP4","v":1}]
[{"$f":"A61+1","v":63},"BME SZIT","Bodon Ferenc, Búza Krisztián","Adatbányászat","számítástudomány",2,15,{"$f":"2*AJ62+AP62","v":15},{"$nulls":5},{"$f":"V62*3000+W62*10000+Y62*10000+X62*8000","v":{"v":2075000,"d":"2,075,000"}},null,{"v":3040000,"d":"3,040,000"},{"$f":"'[1]összes (2)'!P5","v":"szöveg: LaTeX, videók: wikimédia"},{"$f":"'[1]összes (2)'!Q5","v":".pdf + wikimédia (videó"},{"$f":"'[1]összes (2)'!R5","v":{"v":530000,"d":"530,000"}},null,{"$f":"'[1]összes (2)'!S5","v":0},{"$f":"'[1]összes (2)'!T5","v":25},{"$f":"'[1]összes (2)'!U5","v":200},{"$f":"'[1]összes (2)'!V5","v":0},{"$f":"'[1]összes (2)'!W5","v":0},{"$f":"'[1]összes (2)'!X5","v":10},{"$f":"'[1]összes (2)'!Y5","v":0},null,{"$f":"'[1]összes (2)'!AA5","v":0},{"$f":"'[1]összes (2)'!AB5","v":"Kinetikus gázelmélet: gáznyomás, hőmérséklet, belső energia, transzportfolyamatok, szabad úthossz közelítésben. Termodinamika: állapotjelzők, hőmérsékletskálák, I. és II. főtétel, entrópia, III. főtétel, termodinamikai potenciálok, a termodinamikai egyensúly feltételei, állapotegyenletek, Maxwell-relációk, Euler egyenletek, Gibbs-Duham reláció. Fázisátalakulások: Clausius-Clapeyron egyenlet, első- és másodrendű fázisátalakulások sajátságai, többkomponensű rendszerek, kémiai reakciók. A kvantummechanika alapjai: hőmérsékleti sugárzás, fotoeffektus, Compton effektus, atommodellek, anyaghullámok, Schrödinger egyenlet és stacionárius megoldásai, alkalmazások."},null,{"$f":"'[1]összes (2)'!AD5","v":0},{"$f":"'[1]összes (2)'!AE5","v":0},{"$f":"'[1]összes (2)'!AF5","v":0},{"$f":"'[1]összes (2)'!AG5","v":0},{"$f":"'[1]összes (2)'!AH5","v":0},1,{"$f":"'[1]összes (2)'!AJ5","v":1},{"$f":"'[1]összes (2)'!AK5","v":"Fizika"},{"$f":"'[1]összes (2)'!AL5","v":0},{"$f":"'[1]összes (2)'!AM5","v":"Kísérleti fizika 1. BMETE13AF02"},{"$f":"'[1]összes (2)'!AN5","v":15},1,{"$f":"'[1]összes (2)'!AP5","v":1}]
[{"$f":"A62+1","v":64},"BME SZIT","Katona Gyula","Algoritmus elmélet előadás","számítástudomány",1,60,{"$f":"2*AJ63+AP63","v":60},{"$nulls":5},{"$f":"V63*3000+W63*10000+Y63*10000+X63*8000","v":{"v":495000,"d":"495,000"}},null,{"v":1555000,"d":"1,555,000"},{"$f":"'[1]összes (2)'!P6","v":"LaTex"},{"$f":"'[1]összes (2)'!Q6","v":".pdf+wikimédia"},{"$f":"'[1]összes (2)'!R6","v":{"v":400000,"d":"400,000"}},null,{"$f":"'[1]összes (2)'!S6","v":0},{"$f":"'[1]összes (2)'!T6","v":15},{"$f":"'[1]összes (2)'!U6","v":45},{"$f":"'[1]összes (2)'!V6","v":0},{"$f":"'[1]összes (2)'!W6","v":0},{"$f":"'[1]összes (2)'!X6","v":0},{"$f":"'[1]összes (2)'!Y6","v":0},null,{"$f":"'[1]összes (2)'!AA6","v":0},{"$f":"'[1]összes (2)'!AB6","v":"Anyagi pont newtoni mechanikája, impulzus, impulzusmomentum, konzervativ erők, energia. Pontrendszerek mechanikája, a 10 mozgásintegrál. Kényszerek, általánosított koordináták, a mechanika elvei. Merev testek. Folytonos közegek. rugalmas testek mechanikája, a feszültségtenzor. Hullámegyenlet. Ideális és viszkózus folyadékok. Maxwell egyenletek. Szigetelők, vezetők (stacionárius) áramok, Sztatikus elektromos és mágneses tér. Skalár- és vektorpotenciál. Időfüggő elektromos és mágneses tér. Eletromágneses hullámok. Eletromágneses tér anyagi közegben. Az elektromágneses tér energiája és impulzusa. A speciális relativításelmélet alapjai."},null,{"$f":"'[1]összes (2)'!AD6","v":0},{"$f":"'[1]összes (2)'!AE6","v":0},{"$f":"'[1]összes (2)'!AF6","v":0},{"$f":"'[1]összes (2)'!AG6","v":0},{"$f":"'[1]összes (2)'!AH6","v":0},1,{"$f":"'[1]összes (2)'!AJ6","v":1},{"$f":"'[1]összes (2)'!AK6","v":"Fizikus"},{"$f":"'[1]összes (2)'!AL6","v":0},{"$f":"'[1]összes (2)'!AM6","v":"Elméleti Fizika I.  BMETE15AF06"},{"$f":"'[1]összes (2)'!AN6","v":60},1,{"$f":"'[1]összes (2)'!AP6","v":1}]
[{"$f":"A63+1","v":65},"BME SZIT","Katona Gyula","Adatbázisok elmélete, előadás fóliák","számítástudomány",1,0,{"$f":"2*AJ64+AP64","v":0},{"$nulls":5},{"$f":"V64*3000+W64*10000+Y64*10000+X64*8000","v":{"v":498000,"d":"498,000"}},null,{"v":898000,"d":"898,000"},{"$f":"'[1]összes (2)'!P7","v":"LaTex"},{"$f":"'[1]összes (2)'!Q7","v":".pdf+wikimédia"},{"$f":"'[1]összes (2)'!R7","v":{"v":400000,"d":"400,000"}},null,{"$f":"'[1]összes (2)'!S7","v":0},{"$f":"'[1]összes (2)'!T7","v":16},{"$f":"'[1]összes (2)'!U7","v":45},{"$f":"'[1]összes (2)'!V7","v":0},{"$f":"'[1]összes (2)'!W7","v":0},{"$f":"'[1]összes (2)'!X7","v":0},{"$f":"'[1]összes (2)'!Y7","v":0},null,{"$f":"'[1]összes (2)'!AA7","v":0},{"$f":"'[1]összes (2)'!AB7","v":"Mikro- és makroállapotok, zárt és kölcsönható rendszerek, egyensúly. Statisztikus fizikai entrópia, kapcsolat a termodinamikával. Különböző sokaságok és ekvivalenciájuk. Termodinamikai potenciálok, fluktuációk. Kölcsönható rendszerek, van der Waals egyenlet, fázisátalakulások, átlagtér elmélet. A kvantummechanika matematikai eszközei, Hilbert tér, operátorok. A mérés, sajátértékek, kommutátorok, határozatlansági relációk. Schrödinger egyenler, stacionárius eset, kötött és szabad állapotok."},null,{"$f":"'[1]összes (2)'!AD7","v":0},{"$f":"'[1]összes (2)'!AE7","v":0},{"$f":"'[1]összes (2)'!AF7","v":0},{"$f":"'[1]összes (2)'!AG7","v":0},{"$f":"'[1]összes (2)'!AH7","v":0},1,{"$f":"'[1]összes (2)'!AJ7","v":1},{"$f":"'[1]összes (2)'!AK7","v":"Fizikus"},{"$f":"'[1]összes (2)'!AL7","v":0},{"$f":"'[1]összes (2)'!AM7","v":"Elméleti Fizika II.  BMETE15AF07"},{"$f":"'[1]összes (2)'!AN7","v":0},1,{"$f":"'[1]összes (2)'!AP7","v":1}]
[{"$f":"A64+1","v":66},"BME SZIT","Friedl Katalin,  Horváth Ádám, Mészégető Balázs","Nyelvek és automaták","számítástudomány",3,0,{"$f":"2*AJ65+AP65","v":0},{"$nulls":5},{"$f":"V65*3000+W65*10000+Y65*10000+X65*8000","v":{"v":336000,"d":"336,000"}},null,{"v":1536000,"d":"1,536,000"},{"$f":"'[1]összes (2)'!P8","v":"LaTex"},{"$f":"'[1]összes (2)'!Q8","v":".pdf+wikimédia"},{"$f":"'[1]összes (2)'!R8","v":{"v":400000,"d":"400,000"}},null,{"$f":"'[1]összes (2)'!S8","v":0},{"$f":"'[1]összes (2)'!T8","v":12},{"$f":"'[1]összes (2)'!U8","v":30},{"$f":"'[1]összes (2)'!V8","v":0},{"$f":"'[1]összes (2)'!W8","v":0},{"$f":"'[1]összes (2)'!X8","v":0},{"$f":"'[1]összes (2)'!Y8","v":0},null,{"$f":"'[1]összes (2)'!AA8","v":0},{"$f":"'[1]összes (2)'!AB8","v":"Newton-axiómák, inerciarendszer. Mozgás gyorsuló rendszerben, tehetetlenségi erők. Mozgás egy dimenzióban, centrális erőtérben. Két-test probléma, bolygómozgás, részecskék szórása. Pontrendszerek mozgásegyenletei, és azok integráljai. Merev test mozgása, Euler-egyenletek. Virtuális munka elve, d'Alembert-elv. Kényszerfeltételek, Lagrange-féle első- és másodfajú egyenletek. Hamilton elv Kanonikus egyenletek, kanonikus transzformációk, Hamilton-Jacobi-egyenlet. Szimmetriák, Noether-tétel, mozgásállandók. Deformálható testek mechanikájának elemei. Relativisztikus mechanika."},null,{"$f":"'[1]összes (2)'!AD8","v":0},{"$f":"'[1]összes (2)'!AE8","v":0},{"$f":"'[1]összes (2)'!AF8","v":0},{"$f":"'[1]összes (2)'!AG8","v":0},{"$f":"'[1]összes (2)'!AH8","v":0},1,{"$f":"'[1]összes (2)'!AJ8","v":1},{"$f":"'[1]összes (2)'!AK8","v":"Fizikus"},{"$f":"'[1]összes (2)'!AL8","v":0},{"$f":"'[1]összes (2)'!AM8","v":"Mechanika  BMETE13AF12"},{"$f":"'[1]összes (2)'!AN8","v":0},1,{"$f":"'[1]összes (2)'!AP8","v":1}]
[null,"BME SZIT","összesen",{"$nulls":11},{"$f":"SUM(P60:P65)","v":{"v":10215000,"d":"10,215,000"}},{"$f":"N66+F66*400000+H66*10000+G66*1000","v":0}]
[{"$f":"A65+1","v":67},"ELTE FI","Illy Judit","Fizikai alapmérések laboratóriumi tananyag","fizika",1,{"$f":"2*AJ67+AP67","v":0},{"$f":"2*AJ67+AP67","v":0},{"$nulls":5},{"v":250000,"d":"250,000"},60,{"v":650000,"d":"650,000"},"pdf",null,{"$f":"O67*2000","v":{"v":120000,"d":"120,000"}}]
[{"$f":"A67+1","v":68},"ELTE FI","Bagoly Zsolt","Elektronika laboratórium  tananyag","fizika",1,0,0,{"$nulls":5},{"v":250000,"d":"250,000"},120,{"$f":"N68+F68*400000+H68*10000+G68*1000","v":{"v":650000,"d":"650,000"}},"pdf",null,{"$f":"O68*2000","v":{"v":240000,"d":"240,000"}}]
[{"$f":"A68+1","v":69},"ELTE FI","Havancsák Károly","Klasszikus fizika laboratórium tananyag","fizika",1,0,0,{"$nulls":5},{"v":250000,"d":"250,000"},240,{"v":650000,"d":"650,000"},"pdf",null,{"v":480000,"d":"480,000"}]
[70,"ELTE FI","Kürti Jenő","Modern fizika laboratórium tananyag","fizika",1,0,0,{"$nulls":5},{"v":250000,"d":"250,000"},263,{"v":650000,"d":"650,000"},"pdf",null,{"v":526000,"d":"526,000"}]
[71,"ELTE FI","Havancsák Károly, Csanád Máté","Korszerű vizsgálati módszerek laboratórium tananyag","fizika",2,0,0,{"$nulls":5},{"v":250000,"d":"250,000"},250,{"v":1050000,"d":"1,050,000"},"pdf",null,{"v":500000,"d":"500,000"}]
[72,"ELTE FI","Bagoly Zsolt ","Elektronika és méréstechnika tankönyv ","fizika",1,0,0,{"$nulls":5},{"v":250000,"d":"250,000"},200,{"v":650000,"d":"650,000"},"pdf",null,{"v":400000,"d":"400,000"}]
[73,"ELTE FI","Havancsák Károly","Fizikai mérési módszerek tankönyv","fizika",1,0,0,{"$nulls":5},{"v":250000,"d":"250,000"},250,{"v":650000,"d":"650,000"},"pdf",null,{"v":500000,"d":"500,000"}]
[74,"ELTE FI","Gálfi László","Elektrodinamika tankönyv","fizika",1,0,0,{"$nulls":5},{"v":250000,"d":"250,000"},null,{"v":650000,"d":"650,000"},"pdf",null,0]
[75,"ELTE FI","Gálfi László","Elméleti fizikai példatár","fizika",1,0,0,{"$nulls":5},{"v":250000,"d":"250,000"},null,{"v":650000,"d":"650,000"},"pdf",null,0]
[76,"ELTE FI","Derényi Imre","A biofizika alapjai    tankönyv","fizika",2,0,0,{"$nulls":5},{"v":250000,"d":"250,000"},160,{"v":1050000,"d":"1,050,000"},"pdf",null,{"v":320000,"d":"320,000"}]
[77,"ELTE FI","Cserti József ","Nanotechnika \"tudásbázis\"","fizika",1,0,0,{"$nulls":5},{"v":250000,"d":"250,000"},null,{"v":650000,"d":"650,000"},"pdf",null,0]
[78,"ELTE FI","Bene Gyula","Általános relativitáselmélet   tankönyv","fizika",1,0,0,{"$nulls":5},{"v":250000,"d":"250,000"},130,{"v":650000,"d":"650,000"},"html, pdf",null,{"v":260000,"d":"260,000"}]
[79,"ELTE FI","Bene Gyula, Gruiz Márton","Nemlineáris dinamika és káosz: szimulációs programok","fizika",2,0,0,{"$nulls":5},{"v":250000,"d":"250,000"},30,{"v":1050000,"d":"1,050,000"},"Turbo Pascal,  Java, html",null,{"v":60000,"d":"60,000"}]
[80,"ELTE FI","Szegedi Péter","Fizikatörténeti szöveggyűjtemény        ","fizika",1,0,0,{"$nulls":5},{"v":250000,"d":"250,000"},320,{"v":650000,"d":"650,000"},"pdf",null,{"v":640000,"d":"640,000"}]
[null,"ELTE FI","összesen",{"$nulls":11},{"$f":"SUM(O67:P80)","v":{"v":10302023,"d":"10,302,023"}},0]
[{"$f":"A80+1","v":81},"ELTE MI","Bátkai András, Csomós Petra (Innsbruck), Farkas Bálint","Operator semigroups for numerical methods (angol nyelven)","natematika",3,{"$f":"2*AJ82+AP82","v":15},{"$f":"2*AJ82+AP82","v":15},{"$nulls":5},{"$f":"V82*3000+W82*10000+Y82*10000+X82*8000","v":{"v":2057000,"d":"2,057,000"}},null,{"v":3422000,"d":"3,422,000"},{"$f":"'[1]összes (2)'!P3","v":"szöveg: LaTeX, videók: wikimédia"},{"$f":"'[1]összes (2)'!Q3","v":".pdf + wikimédia (videók)"},{"$f":"'[1]összes (2)'!R3","v":{"v":400000,"d":"400,000"}},null,{"$f":"'[1]összes (2)'!S3","v":0},{"$f":"'[1]összes (2)'!T3","v":19},{"$f":"'[1]összes (2)'!U3","v":200},{"$f":"'[1]összes (2)'!V3","v":0},{"$f":"'[1]összes (2)'!W3","v":0},{"$f":"'[1]összes (2)'!X3","v":10},{"$f":"'[1]összes (2)'!Y3","v":0},null,{"$f":"'[1]összes (2)'!AA3","v":0},{"$f":"'[1]összes (2)'!AB3","v":"Tömegpont kinematikája;Tömegpont dinamikája;Mozgások leírása különböző vonatkoztatási rendszerekben;Munka és energia;Pontrendszerek mechanikája;Merev testek mozgása;Szilárd testek alakváltozása;Hidrosztatika;Felületi jelenségek;Folyadékok és gázok áramlása;Szabad rezgések;Kényszerrezgés, rezonancia;Rezgések összetevése és felbontása, csatolt rezgések;Hullámok;Energiaterjedés mechanikai hullámokban;Visszaverődés és törés;Interferencia, elhajlás, állóhullámok;Doppler-effektus;Hang és fény, hangszerek, ultrahang;"},null,{"$f":"'[1]összes (2)'!AD3","v":0},{"$f":"'[1]összes (2)'!AE3","v":0},{"$f":"'[1]összes (2)'!AF3","v":0},{"$f":"'[1]összes (2)'!AG3","v":"Atom és molekulafizika  BMETE15MF02"},{"$f":"'[1]összes (2)'!AH3","v":0},{"$f":"'[1]összes (2)'!AI3","v":3},{"$f":"'[1]összes (2)'!AJ3","v":1},{"$f":"'[1]összes (2)'!AK3","v":"Fizika"},{"$f":"'[1]összes (2)'!AL3","v":0},{"$f":"'[1]összes (2)'!AM3","v":"Kísérleti fizika 1. BMETE13AF02"},{"$f":"'[1]összes (2)'!AN3","v":15},{"$f":"'[1]összes (2)'!AO3","v":4},{"$f":"'[1]összes (2)'!AP3","v":1}]
[{"$f":"A82+1","v":82},"ELTE MI","Fried Katalin, Hegyvári Norbert, Korándi József, Maus Pál, Török Judit, Vancsó Ödön","Elemi matematika példatár","natematika",6,15,{"$f":"2*AJ83+AP83","v":15},{"$nulls":5},{"v":2036000,"d":"2,036,000"},null,{"v":4601000,"d":"4,601,000"},{"$f":"'[1]összes (2)'!P4","v":"szöveg: LaTeX, videók: wikimédia"},{"$f":"'[1]összes (2)'!Q4","v":".pdf + wikimédia (videók)"},{"$f":"'[1]összes (2)'!R4","v":{"v":500000,"d":"500,000"}},null,{"$f":"'[1]összes (2)'!S4","v":0},{"$f":"'[1]összes (2)'!T4","v":12},{"$f":"'[1]összes (2)'!U4","v":200},{"$f":"'[1]összes (2)'!V4","v":0},{"$f":"'[1]összes (2)'!W4","v":0},{"$f":"'[1]összes (2)'!X4","v":10},{"$f":"'[1]összes (2)'!Y4","v":0},null,{"$f":"'[1]összes (2)'!AA4","v":0},{"$f":"'[1]összes (2)'!AB4","v":"Elektrosztatika, stacionáris áramok, magnetosztatika, indukció, eltolási áram. Maxwell-egyenletek vákuumban és anyagban. Elektromágneses rezgések és hullámok. Fénytörés, fényvisszaverődés. Fényhullámok interferenciája és diffrakciója. A speciális relativitáselmélet."},null,{"$f":"'[1]összes (2)'!AD4","v":0},{"$f":"'[1]összes (2)'!AE4","v":0},{"$f":"'[1]összes (2)'!AF4","v":0},{"$f":"'[1]összes (2)'!AG4","v":0},{"$f":"'[1]összes (2)'!AH4","v":0},{"$f":"'[1]összes (2)'!AI4","v":0},{"$f":"'[1]összes (2)'!AJ4","v":1},{"$f":"'[1]összes (2)'!AK4","v":"Fizika"},{"$f":"'[1]összes (2)'!AL4","v":0},{"$f":"'[1]összes (2)'!AM4","v":"Kísérleti fizika 1. BMETE13AF02"},{"$f":"'[1]összes (2)'!AN4","v":15},{"$f":"'[1]összes (2)'!AO4","v":4},{"$f":"'[1]összes (2)'!AP4","v":1}]
[83,"ELTE MI","Kristóf János","Absztrakt harmonikus analízis","natematika",1,15,{"$f":"2*AJ84+AP84","v":15},{"$nulls":5},{"v":2075000,"d":"2,075,000"},null,{"v":2640000,"d":"2,640,000"},{"$f":"'[1]összes (2)'!P5","v":"szöveg: LaTeX, videók: wikimédia"},{"$f":"'[1]összes (2)'!Q5","v":".pdf + wikimédia (videó"},{"$f":"'[1]összes (2)'!R5","v":{"v":530000,"d":"530,000"}},null,{"$f":"'[1]összes (2)'!S5","v":0},{"$f":"'[1]összes (2)'!T5","v":25},{"$f":"'[1]összes (2)'!U5","v":200},{"$f":"'[1]összes (2)'!V5","v":0},{"$f":"'[1]összes (2)'!W5","v":0},{"$f":"'[1]összes (2)'!X5","v":10},{"$f":"'[1]összes (2)'!Y5","v":0},null,{"$f":"'[1]összes (2)'!AA5","v":0},{"$f":"'[1]összes (2)'!AB5","v":"Kinetikus gázelmélet: gáznyomás, hőmérséklet, belső energia, transzportfolyamatok, szabad úthossz közelítésben. Termodinamika: állapotjelzők, hőmérsékletskálák, I. és II. főtétel, entrópia, III. főtétel, termodinamikai potenciálok, a termodinamikai egyensúly feltételei, állapotegyenletek, Maxwell-relációk, Euler egyenletek, Gibbs-Duham reláció. Fázisátalakulások: Clausius-Clapeyron egyenlet, első- és másodrendű fázisátalakulások sajátságai, többkomponensű rendszerek, kémiai reakciók. A kvantummechanika alapjai: hőmérsékleti sugárzás, fotoeffektus, Compton effektus, atommodellek, anyaghullámok, Schrödinger egyenlet és stacionárius megoldásai, alkalmazások."},null,{"$f":"'[1]összes (2)'!AD5","v":0},{"$f":"'[1]összes (2)'!AE5","v":0},{"$f":"'[1]összes (2)'!AF5","v":0},{"$f":"'[1]összes (2)'!AG5","v":0},{"$f":"'[1]összes (2)'!AH5","v":0},{"$f":"'[1]összes (2)'!AI5","v":0},{"$f":"'[1]összes (2)'!AJ5","v":1},{"$f":"'[1]összes (2)'!AK5","v":"Fizika"},{"$f":"'[1]összes (2)'!AL5","v":0},{"$f":"'[1]összes (2)'!AM5","v":"Kísérleti fizika 1. BMETE13AF02"},{"$f":"'[1]összes (2)'!AN5","v":15},{"$f":"'[1]összes (2)'!AO5","v":4},{"$f":"'[1]összes (2)'!AP5","v":1}]
[84,"ELTE MI","Faragó István","Numerikus modellezés és közönséges differenciálegyenletek (angol nyelven)","natematika",1,60,4,{"$nulls":5},{"v":495000,"d":"495,000"},null,{"v":995000,"d":"995,000"},{"$f":"'[1]összes (2)'!P6","v":"LaTex"},{"$f":"'[1]összes (2)'!Q6","v":".pdf+wikimédia"},130,null,{"$f":"'[1]összes (2)'!S6","v":0},{"$f":"'[1]összes (2)'!T6","v":15},{"$f":"'[1]összes (2)'!U6","v":45},{"$f":"'[1]összes (2)'!V6","v":0},{"$f":"'[1]összes (2)'!W6","v":0},{"$f":"'[1]összes (2)'!X6","v":0},{"$f":"'[1]összes (2)'!Y6","v":0},null,{"$f":"'[1]összes (2)'!AA6","v":0},{"$f":"'[1]összes (2)'!AB6","v":"Anyagi pont newtoni mechanikája, impulzus, impulzusmomentum, konzervativ erők, energia. Pontrendszerek mechanikája, a 10 mozgásintegrál. Kényszerek, általánosított koordináták, a mechanika elvei. Merev testek. Folytonos közegek. rugalmas testek mechanikája, a feszültségtenzor. Hullámegyenlet. Ideális és viszkózus folyadékok. Maxwell egyenletek. Szigetelők, vezetők (stacionárius) áramok, Sztatikus elektromos és mágneses tér. Skalár- és vektorpotenciál. Időfüggő elektromos és mágneses tér. Eletromágneses hullámok. Eletromágneses tér anyagi közegben. Az elektromágneses tér energiája és impulzusa. A speciális relativításelmélet alapjai."},null,{"$f":"'[1]összes (2)'!AD6","v":0},{"$f":"'[1]összes (2)'!AE6","v":0},{"$f":"'[1]összes (2)'!AF6","v":0},{"$f":"'[1]összes (2)'!AG6","v":0},{"$f":"'[1]összes (2)'!AH6","v":0},{"$f":"'[1]összes (2)'!AI6","v":0},{"$f":"'[1]összes (2)'!AJ6","v":1},{"$f":"'[1]összes (2)'!AK6","v":"Fizikus"},{"$f":"'[1]összes (2)'!AL6","v":0},{"$f":"'[1]összes (2)'!AM6","v":"Elméleti Fizika I.  BMETE15AF06"},{"$f":"'[1]összes (2)'!AN6","v":60},{"$f":"'[1]összes (2)'!AO6","v":6},{"$f":"'[1]összes (2)'!AP6","v":1}]
[85,"ELTE MI","Ambrus Gabriella, Munkácsy Katalin, Pálfalvi Józsefné, Szeredi Éva, Vásárhelyi Éva","Matematika módszertani példatár","natematika",5,0,{"$f":"2*AJ86+AP86","v":0},{"$nulls":5},{"v":498000,"d":"498,000"},null,{"v":2498000,"d":"2,498,000"},{"$f":"'[1]összes (2)'!P7","v":"LaTex"},{"$f":"'[1]összes (2)'!Q7","v":".pdf+wikimédia"},{"$f":"'[1]összes (2)'!R7","v":{"v":400000,"d":"400,000"}},null,{"$f":"'[1]összes (2)'!S7","v":0},{"$f":"'[1]összes (2)'!T7","v":16},{"$f":"'[1]összes (2)'!U7","v":45},{"$f":"'[1]összes (2)'!V7","v":0},{"$f":"'[1]összes (2)'!W7","v":0},{"$f":"'[1]összes (2)'!X7","v":0},{"$f":"'[1]összes (2)'!Y7","v":0},null,{"$f":"'[1]összes (2)'!AA7","v":0},{"$f":"'[1]összes (2)'!AB7","v":"Mikro- és makroállapotok, zárt és kölcsönható rendszerek, egyensúly. Statisztikus fizikai entrópia, kapcsolat a termodinamikával. Különböző sokaságok és ekvivalenciájuk. Termodinamikai potenciálok, fluktuációk. Kölcsönható rendszerek, van der Waals egyenlet, fázisátalakulások, átlagtér elmélet. A kvantummechanika matematikai eszközei, Hilbert tér, operátorok. A mérés, sajátértékek, kommutátorok, határozatlansági relációk. Schrödinger egyenler, stacionárius eset, kötött és szabad állapotok."},null,{"$f":"'[1]összes (2)'!AD7","v":0},{"$f":"'[1]összes (2)'!AE7","v":0},{"$f":"'[1]összes (2)'!AF7","v":0},{"$f":"'[1]összes (2)'!AG7","v":0},{"$f":"'[1]összes (2)'!AH7","v":0},{"$f":"'[1]összes (2)'!AI7","v":0},{"$f":"'[1]összes (2)'!AJ7","v":1},{"$f":"'[1]összes (2)'!AK7","v":"Fizikus"},{"$f":"'[1]összes (2)'!AL7","v":0},{"$f":"'[1]összes (2)'!AM7","v":"Elméleti Fizika II.  BMETE15AF07"},{"$f":"'[1]összes (2)'!AN7","v":0},{"$f":"'[1]összes (2)'!AO7","v":6},{"$f":"'[1]összes (2)'!AP7","v":1}]
[86,"ELTE MI","Sikolya Eszter","Analízis jegyzet","natematika",1,0,0,{"$nulls":5},{"v":336000,"d":"336,000"},null,{"v":736000,"d":"736,000"},{"$f":"'[1]összes (2)'!P8","v":"LaTex"},{"$f":"'[1]összes (2)'!Q8","v":".pdf+wikimédia"},{"$f":"'[1]összes (2)'!R8","v":{"v":400000,"d":"400,000"}},null,{"$f":"'[1]összes (2)'!S8","v":0},{"$f":"'[1]összes (2)'!T8","v":12},{"$f":"'[1]összes (2)'!U8","v":30},{"$f":"'[1]összes (2)'!V8","v":0},{"$f":"'[1]összes (2)'!W8","v":0},{"$f":"'[1]összes (2)'!X8","v":0},{"$f":"'[1]összes (2)'!Y8","v":0},null,{"$f":"'[1]összes (2)'!AA8","v":0},{"$f":"'[1]összes (2)'!AB8","v":"Newton-axiómák, inerciarendszer. Mozgás gyorsuló rendszerben, tehetetlenségi erők. Mozgás egy dimenzióban, centrális erőtérben. Két-test probléma, bolygómozgás, részecskék szórása. Pontrendszerek mozgásegyenletei, és azok integráljai. Merev test mozgása, Euler-egyenletek. Virtuális munka elve, d'Alembert-elv. Kényszerfeltételek, Lagrange-féle első- és másodfajú egyenletek. Hamilton elv Kanonikus egyenletek, kanonikus transzformációk, Hamilton-Jacobi-egyenlet. Szimmetriák, Noether-tétel, mozgásállandók. Deformálható testek mechanikájának elemei. Relativisztikus mechanika."},null,{"$f":"'[1]összes (2)'!AD8","v":0},{"$f":"'[1]összes (2)'!AE8","v":0},{"$f":"'[1]összes (2)'!AF8","v":0},{"$f":"'[1]összes (2)'!AG8","v":0},{"$f":"'[1]összes (2)'!AH8","v":0},{"$f":"'[1]összes (2)'!AI8","v":0},{"$f":"'[1]összes (2)'!AJ8","v":1},{"$f":"'[1]összes (2)'!AK8","v":"Fizikus"},{"$f":"'[1]összes (2)'!AL8","v":0},{"$f":"'[1]összes (2)'!AM8","v":"Mechanika  BMETE13AF12"},{"$f":"'[1]összes (2)'!AN8","v":0},{"$f":"'[1]összes (2)'!AO8","v":4},{"$f":"'[1]összes (2)'!AP8","v":1}]
[87,"ELTE MI","Kristóf János","Topologikus vektorterek és normált algebrák","natematika",1,0,0,{"$nulls":5},{"v":542000,"d":"542,000"},null,{"v":942000,"d":"942,000"},{"$f":"'[1]összes (2)'!P9","v":"LaTex"},{"$f":"'[1]összes (2)'!Q9","v":".pdf+wikimédia"},{"$f":"'[1]összes (2)'!R9","v":{"v":400000,"d":"400,000"}},null,5,{"$f":"'[1]összes (2)'!T9","v":14},{"$f":"'[1]összes (2)'!U9","v":50},{"$f":"'[1]összes (2)'!V9","v":0},{"$f":"'[1]összes (2)'!W9","v":0},{"$f":"'[1]összes (2)'!X9","v":0},{"$f":"'[1]összes (2)'!Y9","v":0},null,{"$f":"'[1]összes (2)'!AA9","v":0},{"$f":"'[1]összes (2)'!AB9","v":"Bevezetés, történeti áttekintés, matematiaki alapfogalmak. Töltéseloszlások elektrosztatikája, elektrosztatikus tér energiája. Poisson egyenlet határfeltételekkel, kapacitás, tükörtöltések módszere. Görbevonalú koordinátarendszerek, gömbi- és hengerkoordináták. Multipólus kifejtés. Elektrosztatika anyag jelenlétében. Mágneses alapjelenségek, árameloszlás mágneses tere. Mágnesség anyag jelenlétében. Időfüggés az elektrodinamikában, indukció. Jelenségek vezetőkben, távíró egyenlet, kvázistacionárius közelítés, skin effektus. Elektromágneses energia és impulzus mérlegegyenlete. Homogén Maxwell-egyenletek megoldása, síkhullámok, csoport- és fázissebesség. Frekvenciafüggő permittivitás, törésmutató, abszorpció. Elektromágneses hullámterjedés határfeltételekkel, törés, hullámvezető. Inhomogén Maxwell-egyenletek megoldása, retardált és avanzsált Green-függvények. Dipól- és multipól sugárzások. Lienard-Wiechert potenciálok. Relativisztikus elektrodinamika. Relativisztikus Larmor-képlet, sugárzás szögeloszlása, spektruma, szinkrotronsugárzás. Elektromágneses hullámok szórása. Cherenkov- és átmeneti sugárzás."},null,{"$f":"'[1]összes (2)'!AD9","v":0},{"$f":"'[1]összes (2)'!AE9","v":0},{"$f":"'[1]összes (2)'!AF9","v":0},{"$f":"'[1]összes (2)'!AG9","v":0},{"$f":"'[1]összes (2)'!AH9","v":0},{"$f":"'[1]összes (2)'!AI9","v":0},{"$f":"'[1]összes (2)'!AJ9","v":1},{"$f":"'[1]összes (2)'!AK9","v":"Fizikus"},{"$f":"'[1]összes (2)'!AL9","v":0},{"$f":"'[1]összes (2)'!AM9","v":"Elektrodinamika és relativitáselmélet  BMETE13AF15"},{"$f":"'[1]összes (2)'!AN9","v":0},{"$f":"'[1]összes (2)'!AO9","v":4},{"$f":"'[1]összes (2)'!AP9","v":1}]
[88,"ELTE MI","Prőhle Tamás\nZempléni András","Többdimenziós statisztika számítógépes módszerei ","natematika",2,0,0,{"$nulls":5},{"v":527000,"d":"527,000"},null,{"v":1327000,"d":"1,327,000"},{"$f":"'[1]összes (2)'!P10","v":"LaTex"},{"$f":"'[1]összes (2)'!Q10","v":".pdf+Wikimédia"},{"$f":"'[1]összes (2)'!R10","v":{"v":400000,"d":"400,000"}},null,{"$f":"'[1]összes (2)'!S10","v":0},{"$f":"'[1]összes (2)'!T10","v":9},{"$f":"'[1]összes (2)'!U10","v":50},{"$f":"'[1]összes (2)'!V10","v":0},{"$f":"'[1]összes (2)'!W10","v":0},{"$f":"'[1]összes (2)'!X10","v":0},{"$f":"'[1]összes (2)'!Y10","v":0},null,{"$f":"'[1]összes (2)'!AA10","v":0},{"$f":"'[1]összes (2)'!AB10","v":"A klasszikus fizika érvényességének határai. Hullámmechanika. A kvantummechanika matematikai és fizikai alapjai. A fizikai mennyiségeket reprezentáló operátorok sajátértékei és sajátfüggvényei. Kötött állapotok. Hidrogénatom. Spin. Szórási állapotok. Mozgás elektromágneses térben. Relativisztikus kvantummechanika, Dirac egyenlet. Reprezentációelmélet"},null,{"$f":"'[1]összes (2)'!AD10","v":0},{"$f":"'[1]összes (2)'!AE10","v":0},{"$f":"'[1]összes (2)'!AF10","v":0},{"$f":"'[1]összes (2)'!AG10","v":0},{"$f":"'[1]összes (2)'!AH10","v":0},{"$f":"'[1]összes (2)'!AI10","v":0},{"$f":"'[1]összes (2)'!AJ10","v":1},{"$f":"'[1]összes (2)'!AK10","v":"Fizikus"},{"$f":"'[1]összes (2)'!AL10","v":0},{"$f":"'[1]összes (2)'!AM10","v":"Kvantummechanika BMETE15AF00"},{"$f":"'[1]összes (2)'!AN10","v":0},{"$f":"'[1]összes (2)'!AO10","v":5},{"$f":"'[1]összes (2)'!AP10","v":1}]
[89,"ELTE MI","Verhóczki László","Klasszikus differenciálgeometria","natematika",1,0,0,{"$nulls":5},{"v":345000,"d":"345,000"},null,{"v":745000,"d":"745,000"},{"$f":"'[1]összes (2)'!P11","v":"LaTex"},{"$f":"'[1]összes (2)'!Q11","v":".pdf+wikimédia"},{"$f":"'[1]összes (2)'!R11","v":{"v":400000,"d":"400,000"}},null,{"$f":"'[1]összes (2)'!S11","v":0},{"$f":"'[1]összes (2)'!T11","v":15},{"$f":"'[1]összes (2)'!U11","v":30},{"$f":"'[1]összes (2)'!V11","v":0},{"$f":"'[1]összes (2)'!W11","v":0},{"$f":"'[1]összes (2)'!X11","v":0},{"$f":"'[1]összes (2)'!Y11","v":0},null,{"$f":"'[1]összes (2)'!AA11","v":0},{"$f":"'[1]összes (2)'!AB11","v":"A statisztikus fizika célkitűzése. Időskálák, egyensúly, irreverzibilitás. Mikro- és makroállapotok, normál rendszerek. Liouville- és Neumann egyenlet. Egyenlő valószínűségek elve, entrópia, kapcsolat a termodinamikával, sokaságok, ekvivalenciájuk. Termodinamikai potenciálok, fluktuációk, korrelációk. Ideális gázok, kvantumstatisztikák, klasszikus átmenet, Degenerált kvantumgázok, Bose-Einstein kondenzáció, fotongáz. Kvázirészecskék, fononok. szuperfolyékonyság, a Fermi-folyadék elmélet alapjai. Árnyékolás. Viriál sofejtés. Fázisátalakulások, van der Waals, Weiss, Landau elméletek. A fluktuációk szerepe, skálázás, univerzalitás, a renormálási csoport transzformáció alapgondolata. Időfüggő egyensúlyi korrelációk. Lineáris transzport, kereszteffektusok, lineáris válasz, fluktuáció,disszipáció tétel. Brown-mozgás, diffúzió, Langevin-egyenlet, Fokker-Planck egyenlet, Vezéregyenlet, Boltzmann-egyenlet, H-tétel, irreverzibilitási paradoxonok és feloldásuk."},null,{"$f":"'[1]összes (2)'!AD11","v":0},{"$f":"'[1]összes (2)'!AE11","v":0},{"$f":"'[1]összes (2)'!AF11","v":0},{"$f":"'[1]összes (2)'!AG11","v":0},{"$f":"'[1]összes (2)'!AH11","v":0},{"$f":"'[1]összes (2)'!AI11","v":0},{"$f":"'[1]összes (2)'!AJ11","v":1},{"$f":"'[1]összes (2)'!AK11","v":"Fizikus"},{"$f":"'[1]összes (2)'!AL11","v":0},{"$f":"'[1]összes (2)'!AM11","v":"Statisztikus Fizika  BMETE15AF04"},{"$f":"'[1]összes (2)'!AN11","v":0},{"$f":"'[1]összes (2)'!AO11","v":5},{"$f":"'[1]összes (2)'!AP11","v":1}]
[90,"ELTE MI","Simon Péter","Differenciálegyenletek és dinamikai rendszerek (angol nyelven","natematika",1,0,0,{"$nulls":5},{"v":530000,"d":"530,000"},null,{"v":930000,"d":"930,000"},{"$f":"'[1]összes (2)'!P12","v":"Wikimédia "},{"$f":"'[1]összes (2)'!Q12","v":"Wikimédia "},{"$f":"'[1]összes (2)'!R12","v":{"v":120000,"d":"120,000"}},null,{"$f":"'[1]összes (2)'!S12","v":0},{"$f":"'[1]összes (2)'!T12","v":10},{"$f":"'[1]összes (2)'!U12","v":50},{"$f":"'[1]összes (2)'!V12","v":0},{"$f":"'[1]összes (2)'!W12","v":0},{"$f":"'[1]összes (2)'!X12","v":0},{"$f":"'[1]összes (2)'!Y12","v":0},null,{"$f":"'[1]összes (2)'!AA12","v":0},{"$f":"'[1]összes (2)'!AB12","v":"Szilárd testek, kristályok szimmetriái, Szerkezetmeghatározás, Szóráskísérletek, Rácsrezgések, Szilárd testek fajhője, Elektronok ; kvantummechanikai leírása: közel szabad elektron modell, sávszerkezet; szoros kötésű közelítés, Elektron transzport - Drude modell"},null,{"$f":"'[1]összes (2)'!AD12","v":0},{"$f":"'[1]összes (2)'!AE12","v":0},{"$f":"'[1]összes (2)'!AF12","v":0},{"$f":"'[1]összes (2)'!AG12","v":0},{"$f":"'[1]összes (2)'!AH12","v":0},{"$f":"'[1]összes (2)'!AI12","v":0},{"$f":"'[1]összes (2)'!AJ12","v":1},{"$f":"'[1]összes (2)'!AK12","v":"Fizika"},{"$f":"'[1]összes (2)'!AL12","v":0},{"$f":"'[1]összes (2)'!AM12","v":"Szilárdtestfizika gyakorlat BMETE11AF06"},{"$f":"'[1]összes (2)'!AN12","v":0},{"$f":"'[1]összes (2)'!AO12","v":2},{"$f":"'[1]összes (2)'!AP12","v":1}]
[91,"ELTE MI","Tóth János-Simon L. Péter-Csikja Rudolf","Differenciálegyenletek. Feladatgyűjtemény","natematika",3,0,0,{"$nulls":5},{"v":2162000,"d":"2,162,000"},null,{"v":3362000,"d":"3,362,000"},{"$f":"'[1]összes (2)'!P13","v":"LaTex"},{"$f":"'[1]összes (2)'!Q13","v":"PDF"},140,null,{"$f":"'[1]összes (2)'!S13","v":0},{"$f":"'[1]összes (2)'!T13","v":2},{"$f":"'[1]összes (2)'!U13","v":200},7,{"$f":"'[1]összes (2)'!W13","v":10},{"$f":"'[1]összes (2)'!X13","v":0},{"$f":"'[1]összes (2)'!Y13","v":0},null,{"$f":"'[1]összes (2)'!AA13","v":0},{"$f":"'[1]összes (2)'!AB13","v":"Elektromosságtan\nAz elektrosztatika alaptörvényei, Gauss törvény\nElektromos tér szigetelőkben és vezetőkben\nElektromos potenciál és feszültség\nKondenzátorok, kapacitás, az elektromos tér energiája\nStacionárius áramok, Ohm törvény\nEgyenáramú áramkörök, Kirchoff-törvények\nMágneses tér, Lorentz erő\nBiot-Savart-törvény, áram mágneses tere\nMágneses fluxus, Ampere törvénye\nLenz-törvény, indukció, váltóáramú áramkörök\nMaxwell egyenletek rendszere, elektromágneses hullámok\nOptika\nGeometriai optika\nHullámoptika\n"},null,{"$f":"'[1]összes (2)'!AD13","v":0},{"$f":"'[1]összes (2)'!AE13","v":0},{"$f":"'[1]összes (2)'!AF13","v":0},{"$f":"'[1]összes (2)'!AG13","v":0},{"$f":"'[1]összes (2)'!AH13","v":0},{"$f":"'[1]összes (2)'!AI13","v":0},{"$f":"'[1]összes (2)'!AJ13","v":1},{"$f":"'[1]összes (2)'!AK13","v":"Gépészmérnöki, Mechatronikai, Terméktervezői szakok\nBsc Energetikai mérnök szak\nBsc Közlekedésmérnöki szak\nBsc Járműgépész szak\n"},{"$f":"'[1]összes (2)'!AL13","v":0},{"$f":"'[1]összes (2)'!AM13","v":"Fizika2   BMETE11AX02\nFizika 2   BMETE11AX04, Fizika 2   BMETE11AX04\nFizika A2  BMETE15AX02, Fizika A2  BMETE15AX02\nFizika A2E  BMETE15AX15\nFizika A2K  BMETE15AX09\nFizika A2J  BMETE15AX16\n"},{"$f":"'[1]összes (2)'!AN13","v":0},{"$f":"'[1]összes (2)'!AO13","v":0},{"$f":"'[1]összes (2)'!AP13","v":1}]
[null,"ELTE MI","összesen",{"$nulls":11},{"$f":"SUM(P82:P92)","v":{"v":22198000,"d":"22,198,000"}}]
[null,null,"Mindösszesen",{"$nulls":12},{"$f":"SUM(P3:P93)","v":{"v":164387000,"d":"164,387,000"}}]
[]
[{"$nulls":15},{"v":15000000,"d":"15,000,000"}]
[{"$nulls":15},{"v":30000000,"d":"30,000,000"}]
[{"$nulls":15},{"v":5000000,"d":"5,000,000"}]
[{"$nulls":15},{"$f":"SUM(P94:P98)","v":{"v":214387000,"d":"214,387,000"}}]
{"$rows_empty":20}
[{"$nulls":15},5]